{"text_format":"3","workbook":"xlsx","n_sheets":4,"sheets":["Общая информация","Количественные результаты","Индикаторы","Результаты.Недостатки.Предложен"],"read":"whole","date_system":"1900"}

{"sheet":"Общая информация","index":0,"n_rows":11,"n_cols":3,"rows_kept":11,"merged":[[0,0,0,1],[8,0,8,2]]}
["Cведения о результатах независимой оценки"]
["Файл сформирован 29.01.2021 14:57"]
["Перечень показателей","Единый порядок расчета (Приказ Минтруда № 344н от 31.05.2018 г.)"]
["Период проведения независимой оценки","2020 год"]
["Общественный совет","019262000001 - по проведению независимой оценки качества условий оказания услуг организациями в сфере культуры и образования Верхнеуслонского муниципального района"]
["Сфера ","2 - Образование"]
["Дата представления общественным советом результатов независимой оценки","30.11.2020"]
[]
["Документ и реквизиты документа общественного совета, которым утверждаются результаты независимой оценки"]
["Наименование вида документа","Дата документа","Номер документа"]
["Решение Общественного Совета по проведению независимой оценки качества условий оказания услуг организациями в сфере культуры и образования Верхнеуслонского муниципального района","30.11.2020","3"]

{"sheet":"Количественные результаты","index":1,"n_rows":25,"n_cols":53,"rows_kept":25,"merged":[[0,0,0,3],[1,0,6,0],[1,1,6,1],[1,2,6,2],[1,3,6,3],[1,4,6,4],[1,5,1,52],[2,5,2,19],[2,20,2,25],[2,26,2,34],[2,35,2,43],[2,44,2,52],[3,5,3,19],[3,20,3,25],[3,26,3,34],[3,35,3,43],[3,44,3,52],[4,5,4,10],[4,11,4,13],[4,14,4,19],[4,20,4,22],[4,23,4,25],[4,26,4,28],[4,29,4,31],[4,32,4,34],[4,35,4,37],[4,38,4,40],[4,41,4,43],[4,44,4,46],[4,47,4,49],[4,50,4,52],[5,5,5,7],[5,8,5,10],[5,11,5,13],[5,14,5,16],[5,17,5,19],[5,20,5,22],[5,23,5,25],[5,26,5,28],[5,29,5,31],[5,32,5,34],[5,35,5,37],[5,38,5,40],[5,41,5,43],[5,44,5,46],[5,47,5,49],[5,50,5,52],[6,6,6,7],[6,9,6,10],[6,12,6,13],[6,15,6,16],[6,18,6,19],[6,21,6,22],[6,24,6,25],[6,27,6,28],[6,30,6,31],[6,33,6,34],[6,36,6,37],[6,39,6,40],[6,42,6,43],[6,45,6,46],[6,48,6,49],[6,51,6,52]]}
["Количественные результаты независимой оценки качества оказания услуг организациями"]
["№\nп.п.","Организация","Численность\nполучателей\nуслуг\nорганизации","Количество\nреспондентов","Доля\nреспондентов","Общие критерии оценки"]
[{"$nulls":5},"1 - критерий открытости и доступности информации об организации",{"$nulls":14},"2 - критерий комфортности условий предоставления услуги, в том числе время ожидания ее предоставления",{"$nulls":5},"3 - критерий доступности услуг для инвалидов",{"$nulls":8},"4 - критерий доброжелательности, вежливости работников организации",{"$nulls":8},"5 - критерий удовлетворенности условиями оказания услуг"]
[{"$nulls":5},"Показатели",{"$nulls":14},"Показатели",{"$nulls":5},"Показатели",{"$nulls":8},"Показатели",{"$nulls":8},"Показатели"]
[{"$nulls":5},"1.1 Соответствие информации о деятельности организации социальной сферы, размещенной на общедоступных информационных ресурсах, ее содержанию и порядку (форме), установленным законодательными и иными нормативными правовыми актами Российской Федерации",{"$nulls":5},"1.2 Наличие на официальном сайте организации социальной сферы информации о дистанционных способах обратной связи и взаимодействия с получателями услуг и их функционирование",null,null,"1.3 Доля получателей услуг, удовлетворенных открытостью, полнотой и доступностью информации о деятельности организации социальной сферы",{"$nulls":5},"2.1 Обеспечение в организации социальной сферы комфортных условий предоставления услуг",null,null,"2.3 Доля получателей услуг удовлетворенных комфортностью предоставления услуг организацией социальной сферы",null,null,"3.1 Оборудование помещений организации социальной сферы и прилегающей к ней территории с учетом доступности для инвалидов",null,null,"3.2 Обеспечение в организации социальной сферы условий доступности, позволяющих инвалидам получать услуги наравне с другими",null,null,"3.3 Доля получателей услуг, удовлетворенных доступностью услуг для инвалидов",null,null,"4.1 Доля получателей услуг, удовлетворенных доброжелательностью, вежливостью работников организации социальной сферы, обеспечивающих первичный контакт и информирование получателя услуги при непосредственном обращении в организацию социальной сферы",null,null,"4.2 Доля получателей услуг, удовлетворенных доброжелательностью, вежливостью работников организации социальной сферы, обеспечивающих непосредственное оказание услуги при обращении в организацию социальной сферы",null,null,"4.3 Доля получателей услуг, удовлетворенных доброжелательностью, вежливостью работников организации социальной сферы при использовании дистанционных форм взаимодействия",null,null,"5.1 Доля получателей услуг, которые готовы рекомендовать организацию социальной сферы родственникам и знакомым (могли бы ее рекомендовать, если бы была возможность выбора организации социальной сферы)",null,null,"5.2 Доля получателей услуг, удовлетворенных организационными условиями предоставления услуг",null,null,"5.3 Доля получателей услуг, удовлетворенных в целом условиями оказания услуг в организации социальной сферы"]
[{"$nulls":5},"1.1.1 - Соответствие информации о деятельности организации социальной сферы, размещенной на информационных стендах в помещении организации социальной сферы, ее содержанию и порядку (форме), установленным нормативными правовыми актами.",null,null,"1.1.2 - Соответствие информации о деятельности организации социальной сферы, размещенной на официальном сайте организации социальной сферы, ее содержанию и порядку (форме), установленным нормативными правовыми актами.",null,null,"1.2.1 - Наличие и функционирование на официальном сайте организации информации о дистанционных способах взаимодействия с получателями услуг: телефона; электронной почты; электронных сервисов (форма для подачи электронного обращения (жалобы, предложения), получение консультации по оказываемым услугам и пр.); раздела «Часто задаваемые вопросы»; технической возможности выражения получателем услуг мнения о качестве условий оказания услуг организацией социальной сферы (наличие анкеты для опроса граждан или гиперссылки на нее); иного дистанционного способа взаимодействия.",null,null,"1.3.1 - Удовлетворенность качеством, полнотой и доступностью информации о деятельности организации социальной сферы, размещенной на информационных стендах в помещении организации социальной сферы.",null,null,"1.3.2 - Удовлетворенность качеством, полнотой и доступностью информации о деятельности организации социальной сферы, размещенной на официальном сайте организации социальной сферы в сети «Интернет».",null,null,"2.1.1 - Наличие комфортных условий для предоставления услуг, например: наличие комфортной зоны отдыха (ожидания), оборудованной соответствующей мебелью; наличие и понятность навигации внутри организации социальной сферы; наличие и доступность питьевой воды; наличие и доступность санитарно-гигиенических помещений; санитарное состояние помещений организации социальной сферы; транспортная доступность (возможность доехать до организации социальной сферы на общественном транспорте, наличие парковки); доступность записи на получение услуги (по телефону, на официальном сайте организации социальной сферы в сети Интернет, посредством Единого портала государственных и муниципальных услуг, при личном посещении в регистратуре или у специалиста организации социальной сферы и пр.); иные параметры комфортных условий, установленные ведомственным актом уполномоченного федерального органа исполнительной власти.",null,null,"2.3.1 - Удовлетворенность комфортностью предоставления услуг организацией социальной сферы.",null,null,"3.1.1 - Наличие в помещениях организации социальной сферы и на прилегающей к ней территории: оборудованных входных групп пандусами (подъемными платформами); выделенных стоянок для автотранспортных средств инвалидов; адаптированных лифтов, поручней, расширенных дверных проемов; сменных кресел-колясок; специально оборудованных санитарно-гигиенических помещений в организации социальной сферы.",null,null,"3.2.1 - Наличие в организации социальной сферы условий доступности, позволяющих инвалидам получать услуги наравне с другими: дублирование для инвалидов по слуху и зрению звуковой и зрительной информации; дублирование надписей, знаков и иной текстовой и графической информации знаками, выполненными рельефно-точечным шрифтом Брайля; возможность предоставления инвалидам по слуху (слуху и зрению) услуг сурдопереводчика (тифлосурдопереводчика); наличие альтернативной версии официального сайта организации социальной сферы в сети Интернет для инвалидов по зрению; помощь, оказываемая работниками организации социальной сферы, прошедшими необходимое обучение (инструктирование) по сопровождению инвалидов в помещениях организации социальной сферы и на прилегающей территории; наличие возможности предоставления услуги в дистанционном режиме или на дому.",null,null,"3.3.1 - Удовлетворенность доступностью услуг для инвалидов.",null,null,"4.1.1 - Удовлетворенность доброжелательностью, вежливостью работников организации социальной сферы, обеспечивающих первичный контакт и информирование получателя услуги (работники справочной, приемного отделения, регистратуры, кассы и прочие работники) при непосредственном обращении в организацию социальной сферы.",null,null,"4.2.1 - Удовлетворенность доброжелательностью, вежливостью работников организации социальной сферы, обеспечивающих непосредственное оказание услуги (врачи, социальные работники, работники, осуществляющие экспертно-реабилитационную диагностику, преподаватели, тренеры, инструкторы, библиотекари, экскурсоводы и прочие работники) при обращении в организацию социальной сферы.",null,null,"4.3.1 - Удовлетворенность доброжелательностью, вежливостью работников организации социальной сферы при использовании дистанционных форм взаимодействия (по телефону, по электронной почте, с помощью электронных сервисов (подачи электронного обращения (жалобы, предложения), получения консультации по оказываемым услугам и пр.).",null,null,"5.1.1 - Готовность получателей услуг рекомендовать организацию социальной сферы родственникам и знакомым.",null,null,"5.2.1 - Удовлетворенность получателей услуг организационными условиями оказания услуг, например: наличием и понятностью навигации внутри организации социальной сферы; графиком работы организации социальной сферы (подразделения, отдельных специалистов, графиком прихода социального работника на дом и пр.).",null,null,"5.3.1 - Удовлетворенность получателей услуг в целом условиями оказания услуг в организации социальной сферы."]
[{"$nulls":5},"Наименование индикатора","Выполнение индикатора",null,"Наименование индикатора","Выполнение индикатора",null,"Наименование индикатора","Выполнение индикатора",null,"Наименование индикатора","Выполнение индикатора",null,"Наименование индикатора","Выполнение индикатора",null,"Наименование индикатора","Выполнение индикатора",null,"Наименование индикатора","Выполнение индикатора",null,"Наименование индикатора","Выполнение индикатора",null,"Наименование индикатора","Выполнение индикатора",null,"Наименование индикатора","Выполнение индикатора",null,"Наименование индикатора","Выполнение индикатора",null,"Наименование индикатора","Выполнение индикатора",null,"Наименование индикатора","Выполнение индикатора",null,"Наименование индикатора","Выполнение индикатора",null,"Наименование индикатора","Выполнение индикатора",null,"Наименование индикатора","Выполнение индикатора"]
[1,"МУНИЦИПАЛЬНОЕ БЮДЖЕТНОЕ ОБЩЕОБРАЗОВАТЕЛЬНОЕ УЧРЕЖДЕНИЕ \"НИЖНЕУСЛОНСКАЯ ОСНОВНАЯ ОБЩЕОБРАЗОВАТЕЛЬНАЯ ШКОЛА ВЕРХНЕУСЛОНСКОГО МУНИЦИПАЛЬНОГО РАЙОНА РЕСПУБЛИКИ ТАТАРСТАН\", 1615004280","31","29","93.5","объем информации (количество материалов/единиц информации), размещенной  на информационных стендах в помещении организации по отношению к количеству  материалов, размещение которых установлено нормативными правовыми актами",79,{"$f":"INDEX(Индикаторы!H8:H9,MATCH('Количественные результаты'!F8,Индикаторы!F8:F9,0))","v":100},"Объем информации (количество материалов/единиц информации), размещенной  на официальном сайте организации по отношению к количеству  материалов, размещение которых установлено нормативными правовыми актами",77,{"$f":"INDEX(Индикаторы!K8:K9,MATCH('Количественные результаты'!I8,Индикаторы!I8:I9,0))","v":100},"В наличии и функционируют более трех  дистанционных способов взаимодействия","",{"$f":"INDEX(Индикаторы!N8:N10,MATCH('Количественные результаты'!L8,Индикаторы!L8:L10,0))","v":100},"Число получателей услуг, удовлетворенных качеством, полнотой и доступностью информации о деятельности организации социальной сферы, размещенной на информационных стендах в помещении организации социальной сферы по отношению к числу опрошенных  получателей услуг, ответивших на соответствующий вопрос анкеты",83,100,"число получателей услуг, удовлетворенных качеством, полнотой и доступностью информации о деятельности организации социальной сферы, размещенной на официальном сайте организации социальной сферы по отношению к  числу опрошенных  получателей услуг, ответивших на соответствующий вопрос анкеты",85,100,"Количество комфортных условий для предоставления услуг (от одного до четырех включительно)",3,{"$f":"INDEX(Индикаторы!W8:W10,MATCH('Количественные результаты'!U8,Индикаторы!U8:U10,0))","v":20},"Число получателей услуг, удовлетворенных комфортностью предоставления услуг организацией социальной сферы, по отношению к  числу опрошенных  получателей услуг, ответивших на данный вопрос",66,100,"Отсутствуют условия доступности для инвалидов","",{"$f":"INDEX(Индикаторы!AC8:AC10,MATCH('Количественные результаты'!AA8,Индикаторы!AA8:AA10,0))","v":0},"Отсутствуют условия доступности, позволяющие инвалидам получать услуги наравне с другими","",{"$f":"INDEX(Индикаторы!AF8:AF10,MATCH('Количественные результаты'!AD8,Индикаторы!AD8:AD10,0))","v":0},"Число получателей услуг-инвалидов, удовлетворенных доступностью услуг для инвалидов, по отношению к  числу опрошенных  получателей услуг- инвалидов, ответивших на соответствующий вопрос анкеты",50,100,"Число получателей услуг, удовлетворенных доброжелательностью, вежливостью работников организации социальной сферы, обеспечивающих первичный контакт и информирование получателя услуги,  по отношению к числу опрошенныхполучателей услуг, ответивших на соответствующий вопрос  анкеты",76,100,"Число  получателей услуг, удовлетворенных доброжелательностью, вежливостью работников организации социальной сферы, обеспечивающих непосредственное оказание услуги, по отношению к числу опрошенных получателей услуг, ответивших на соответствующий вопрос анкеты",77,100,"Число получателей услуг, удовлетворенных доброжелательностью, вежливостью работников организации социальной сферы при использовании дистанционных форм взаимодействия, по отношению к числу опрошенных получателей услуг, ответивших на соответствующий вопрос анкеты",86,100,"Число получателей услуг, которые готовы рекомендовать организацию родственникам и знакомым (могли бы ее рекомендовать, если бы была возможность выбора организации, по отношению к числу опрошенных получателей услуг, ответивших на соответствующий вопрос анкеты",76,100,"Число получателей услуг, удовлетворенных организационными условиями предоставления услуг, по отношению к числу опрошенных получателей услуг  ответивших на соответствующий вопрос анкеты",66,100,"Число  получателей услуг, удовлетворенных в целом условиями оказания услуг в организации социальной сферы, по отношению к\nчислу опрошенных  получателей услуг, ответивших на соответствующий вопрос анкеты",66,100]
[2,"МУНИЦИПАЛЬНОЕ БЮДЖЕТНОЕ ОБЩЕОБРАЗОВАТЕЛЬНОЕ УЧРЕЖДЕНИЕ \"ВВЕДЕНСКО-СЛОБОДСКАЯ ОСНОВНАЯ ОБЩЕОБРАЗОВАТЕЛЬНАЯ ШКОЛА\" ВЕРХНЕУСЛОНСКОГО МУНИЦИПАЛЬНОГО РАЙОНА РЕСПУБЛИКИ ТАТАРСТАН, 1615003713","23","19","82.6","объем информации (количество материалов/единиц информации), размещенной  на информационных стендах в помещении организации по отношению к количеству  материалов, размещение которых установлено нормативными правовыми актами",89,{"$f":"INDEX(Индикаторы!H11:H12,MATCH('Количественные результаты'!F9,Индикаторы!F11:F12,0))","v":100},"Объем информации (количество материалов/единиц информации), размещенной  на официальном сайте организации по отношению к количеству  материалов, размещение которых установлено нормативными правовыми актами",90,{"$f":"INDEX(Индикаторы!K11:K12,MATCH('Количественные результаты'!I9,Индикаторы!I11:I12,0))","v":100},"В наличии и функционируют более трех  дистанционных способов взаимодействия","",{"$f":"INDEX(Индикаторы!N11:N13,MATCH('Количественные результаты'!L9,Индикаторы!L11:L13,0))","v":100},"Число получателей услуг, удовлетворенных качеством, полнотой и доступностью информации о деятельности организации социальной сферы, размещенной на информационных стендах в помещении организации социальной сферы по отношению к числу опрошенных  получателей услуг, ответивших на соответствующий вопрос анкеты",76,100,"число получателей услуг, удовлетворенных качеством, полнотой и доступностью информации о деятельности организации социальной сферы, размещенной на официальном сайте организации социальной сферы по отношению к  числу опрошенных  получателей услуг, ответивших на соответствующий вопрос анкеты",82,100,"Наличие пяти  и более комфортных условий для предоставления услуг","",{"$f":"INDEX(Индикаторы!W11:W13,MATCH('Количественные результаты'!U9,Индикаторы!U11:U13,0))","v":100},"Число получателей услуг, удовлетворенных комфортностью предоставления услуг организацией социальной сферы, по отношению к  числу опрошенных  получателей услуг, ответивших на данный вопрос",89,100,"Количество условий доступности организации для инвалидов (от одного до четырех)",3,{"$f":"INDEX(Индикаторы!AC11:AC13,MATCH('Количественные результаты'!AA9,Индикаторы!AA11:AA13,0))","v":20},"Количество условий доступности, позволяющих инвалидам получать услуги наравне с другими (от одного до четырех)",3,{"$f":"INDEX(Индикаторы!AF11:AF13,MATCH('Количественные результаты'!AD9,Индикаторы!AD11:AD13,0))","v":20},"Число получателей услуг-инвалидов, удовлетворенных доступностью услуг для инвалидов, по отношению к  числу опрошенных  получателей услуг- инвалидов, ответивших на соответствующий вопрос анкеты",0,100,"Число получателей услуг, удовлетворенных доброжелательностью, вежливостью работников организации социальной сферы, обеспечивающих первичный контакт и информирование получателя услуги,  по отношению к числу опрошенныхполучателей услуг, ответивших на соответствующий вопрос  анкеты",97,100,"Число  получателей услуг, удовлетворенных доброжелательностью, вежливостью работников организации социальной сферы, обеспечивающих непосредственное оказание услуги, по отношению к числу опрошенных получателей услуг, ответивших на соответствующий вопрос анкеты",87,100,"Число получателей услуг, удовлетворенных доброжелательностью, вежливостью работников организации социальной сферы при использовании дистанционных форм взаимодействия, по отношению к числу опрошенных получателей услуг, ответивших на соответствующий вопрос анкеты",96,100,"Число получателей услуг, которые готовы рекомендовать организацию родственникам и знакомым (могли бы ее рекомендовать, если бы была возможность выбора организации, по отношению к числу опрошенных получателей услуг, ответивших на соответствующий вопрос анкеты",76,100,"Число получателей услуг, удовлетворенных организационными условиями предоставления услуг, по отношению к числу опрошенных получателей услуг  ответивших на соответствующий вопрос анкеты",89,100,"Число  получателей услуг, удовлетворенных в целом условиями оказания услуг в организации социальной сферы, по отношению к\nчислу опрошенных  получателей услуг, ответивших на соответствующий вопрос анкеты",89,100]
[3,"МУНИЦИПАЛЬНОЕ БЮДЖЕТНОЕ  ОБЩЕОБРАЗОВАТЕЛЬНОЕ УЧРЕЖДЕНИЕ \"ПЕЧИЩИНСКАЯ ОСНОВНАЯ ОБЩЕОБРАЗОВАТЕЛЬНАЯ ШКОЛА\" ВЕРХНЕУСЛОНСКОГО МУНИЦИПАЛЬНОГО РАЙОНА РЕСПУБЛИКИ ТАТАРСТАН, 1615003706","32","29","90.6","объем информации (количество материалов/единиц информации), размещенной  на информационных стендах в помещении организации по отношению к количеству  материалов, размещение которых установлено нормативными правовыми актами",91,{"$f":"INDEX(Индикаторы!H14:H15,MATCH('Количественные результаты'!F10,Индикаторы!F14:F15,0))","v":100},"Объем информации (количество материалов/единиц информации), размещенной  на официальном сайте организации по отношению к количеству  материалов, размещение которых установлено нормативными правовыми актами",89,{"$f":"INDEX(Индикаторы!K14:K15,MATCH('Количественные результаты'!I10,Индикаторы!I14:I15,0))","v":100},"Количество  функционирующих дистанционных способов взаимодействия (от одного до трех способов включительно)",3,{"$f":"INDEX(Индикаторы!N14:N16,MATCH('Количественные результаты'!L10,Индикаторы!L14:L16,0))","v":30},"Число получателей услуг, удовлетворенных качеством, полнотой и доступностью информации о деятельности организации социальной сферы, размещенной на информационных стендах в помещении организации социальной сферы по отношению к числу опрошенных  получателей услуг, ответивших на соответствующий вопрос анкеты",88,100,"число получателей услуг, удовлетворенных качеством, полнотой и доступностью информации о деятельности организации социальной сферы, размещенной на официальном сайте организации социальной сферы по отношению к  числу опрошенных  получателей услуг, ответивших на соответствующий вопрос анкеты",86,100,"Количество комфортных условий для предоставления услуг (от одного до четырех включительно)",4,{"$f":"INDEX(Индикаторы!W14:W16,MATCH('Количественные результаты'!U10,Индикаторы!U14:U16,0))","v":20},"Число получателей услуг, удовлетворенных комфортностью предоставления услуг организацией социальной сферы, по отношению к  числу опрошенных  получателей услуг, ответивших на данный вопрос",88,100,"Отсутствуют условия доступности для инвалидов","",{"$f":"INDEX(Индикаторы!AC14:AC16,MATCH('Количественные результаты'!AA10,Индикаторы!AA14:AA16,0))","v":0},"Отсутствуют условия доступности, позволяющие инвалидам получать услуги наравне с другими","",{"$f":"INDEX(Индикаторы!AF14:AF16,MATCH('Количественные результаты'!AD10,Индикаторы!AD14:AD16,0))","v":0},"Число получателей услуг-инвалидов, удовлетворенных доступностью услуг для инвалидов, по отношению к  числу опрошенных  получателей услуг- инвалидов, ответивших на соответствующий вопрос анкеты",0,100,"Число получателей услуг, удовлетворенных доброжелательностью, вежливостью работников организации социальной сферы, обеспечивающих первичный контакт и информирование получателя услуги,  по отношению к числу опрошенныхполучателей услуг, ответивших на соответствующий вопрос  анкеты",92,100,"Число  получателей услуг, удовлетворенных доброжелательностью, вежливостью работников организации социальной сферы, обеспечивающих непосредственное оказание услуги, по отношению к числу опрошенных получателей услуг, ответивших на соответствующий вопрос анкеты",92,100,"Число получателей услуг, удовлетворенных доброжелательностью, вежливостью работников организации социальной сферы при использовании дистанционных форм взаимодействия, по отношению к числу опрошенных получателей услуг, ответивших на соответствующий вопрос анкеты",89,100,"Число получателей услуг, которые готовы рекомендовать организацию родственникам и знакомым (могли бы ее рекомендовать, если бы была возможность выбора организации, по отношению к числу опрошенных получателей услуг, ответивших на соответствующий вопрос анкеты",78,100,"Число получателей услуг, удовлетворенных организационными условиями предоставления услуг, по отношению к числу опрошенных получателей услуг  ответивших на соответствующий вопрос анкеты",85,100,"Число  получателей услуг, удовлетворенных в целом условиями оказания услуг в организации социальной сферы, по отношению к\nчислу опрошенных  получателей услуг, ответивших на соответствующий вопрос анкеты",85,100]
[4,"МУНИЦИПАЛЬНОЕ БЮДЖЕТНОЕ ДОШКОЛЬНОЕ ОБРАЗОВАТЕЛЬНОЕ УЧРЕЖДЕНИЕ \"МАКУЛОВСКИЙ ДЕТСКИЙ САД\" ВЕРХНЕУСЛОНСКОГО МУНИЦИПАЛЬНОГО РАЙОНА РЕСПУБЛИКИ ТАТАРСТАН, 1615004107","42","40","95.2","объем информации (количество материалов/единиц информации), размещенной  на информационных стендах в помещении организации по отношению к количеству  материалов, размещение которых установлено нормативными правовыми актами",87,{"$f":"INDEX(Индикаторы!H17:H18,MATCH('Количественные результаты'!F11,Индикаторы!F17:F18,0))","v":100},"Объем информации (количество материалов/единиц информации), размещенной  на официальном сайте организации по отношению к количеству  материалов, размещение которых установлено нормативными правовыми актами",85,{"$f":"INDEX(Индикаторы!K17:K18,MATCH('Количественные результаты'!I11,Индикаторы!I17:I18,0))","v":100},"Количество  функционирующих дистанционных способов взаимодействия (от одного до трех способов включительно)",3,{"$f":"INDEX(Индикаторы!N17:N19,MATCH('Количественные результаты'!L11,Индикаторы!L17:L19,0))","v":30},"Число получателей услуг, удовлетворенных качеством, полнотой и доступностью информации о деятельности организации социальной сферы, размещенной на информационных стендах в помещении организации социальной сферы по отношению к числу опрошенных  получателей услуг, ответивших на соответствующий вопрос анкеты",88,100,"число получателей услуг, удовлетворенных качеством, полнотой и доступностью информации о деятельности организации социальной сферы, размещенной на официальном сайте организации социальной сферы по отношению к  числу опрошенных  получателей услуг, ответивших на соответствующий вопрос анкеты",85,100,"Количество комфортных условий для предоставления услуг (от одного до четырех включительно)",3,{"$f":"INDEX(Индикаторы!W17:W19,MATCH('Количественные результаты'!U11,Индикаторы!U17:U19,0))","v":20},"Число получателей услуг, удовлетворенных комфортностью предоставления услуг организацией социальной сферы, по отношению к  числу опрошенных  получателей услуг, ответивших на данный вопрос",84,100,"Количество условий доступности организации для инвалидов (от одного до четырех)",3,{"$f":"INDEX(Индикаторы!AC17:AC19,MATCH('Количественные результаты'!AA11,Индикаторы!AA17:AA19,0))","v":20},"Количество условий доступности, позволяющих инвалидам получать услуги наравне с другими (от одного до четырех)",3,{"$f":"INDEX(Индикаторы!AF17:AF19,MATCH('Количественные результаты'!AD11,Индикаторы!AD17:AD19,0))","v":20},"Число получателей услуг-инвалидов, удовлетворенных доступностью услуг для инвалидов, по отношению к  числу опрошенных  получателей услуг- инвалидов, ответивших на соответствующий вопрос анкеты",0,100,"Число получателей услуг, удовлетворенных доброжелательностью, вежливостью работников организации социальной сферы, обеспечивающих первичный контакт и информирование получателя услуги,  по отношению к числу опрошенныхполучателей услуг, ответивших на соответствующий вопрос  анкеты",85,100,"Число  получателей услуг, удовлетворенных доброжелательностью, вежливостью работников организации социальной сферы, обеспечивающих непосредственное оказание услуги, по отношению к числу опрошенных получателей услуг, ответивших на соответствующий вопрос анкеты",87,100,"Число получателей услуг, удовлетворенных доброжелательностью, вежливостью работников организации социальной сферы при использовании дистанционных форм взаимодействия, по отношению к числу опрошенных получателей услуг, ответивших на соответствующий вопрос анкеты",87,100,"Число получателей услуг, которые готовы рекомендовать организацию родственникам и знакомым (могли бы ее рекомендовать, если бы была возможность выбора организации, по отношению к числу опрошенных получателей услуг, ответивших на соответствующий вопрос анкеты",88,100,"Число получателей услуг, удовлетворенных организационными условиями предоставления услуг, по отношению к числу опрошенных получателей услуг  ответивших на соответствующий вопрос анкеты",88,100,"Число  получателей услуг, удовлетворенных в целом условиями оказания услуг в организации социальной сферы, по отношению к\nчислу опрошенных  получателей услуг, ответивших на соответствующий вопрос анкеты",88,100]
[5,"МУНИЦИПАЛЬНОЕ БЮДЖЕТНОЕ ДОШКОЛЬНОЕ ОБРАЗОВАТЕЛЬНОЕ УЧРЕЖДЕНИЕ \"ВЕРХНЕУСЛОНСКИЙ ДЕТСКИЙ САД \"РАДУГА\"\"ВЕРХНЕУСЛОНСКОГО МУНИЦИПАЛЬНОГО РАЙОНА РЕСПУБЛИКИ ТАТАРСТАН, 1615004065","116","110","94.8","объем информации (количество материалов/единиц информации), размещенной  на информационных стендах в помещении организации по отношению к количеству  материалов, размещение которых установлено нормативными правовыми актами",98,{"$f":"INDEX(Индикаторы!H20:H21,MATCH('Количественные результаты'!F12,Индикаторы!F20:F21,0))","v":100},"Объем информации (количество материалов/единиц информации), размещенной  на официальном сайте организации по отношению к количеству  материалов, размещение которых установлено нормативными правовыми актами",95,{"$f":"INDEX(Индикаторы!K20:K21,MATCH('Количественные результаты'!I12,Индикаторы!I20:I21,0))","v":100},"Количество  функционирующих дистанционных способов взаимодействия (от одного до трех способов включительно)",3,{"$f":"INDEX(Индикаторы!N20:N22,MATCH('Количественные результаты'!L12,Индикаторы!L20:L22,0))","v":30},"Число получателей услуг, удовлетворенных качеством, полнотой и доступностью информации о деятельности организации социальной сферы, размещенной на информационных стендах в помещении организации социальной сферы по отношению к числу опрошенных  получателей услуг, ответивших на соответствующий вопрос анкеты",98,100,"число получателей услуг, удовлетворенных качеством, полнотой и доступностью информации о деятельности организации социальной сферы, размещенной на официальном сайте организации социальной сферы по отношению к  числу опрошенных  получателей услуг, ответивших на соответствующий вопрос анкеты",95,100,"Количество комфортных условий для предоставления услуг (от одного до четырех включительно)",4,{"$f":"INDEX(Индикаторы!W20:W22,MATCH('Количественные результаты'!U12,Индикаторы!U20:U22,0))","v":20},"Число получателей услуг, удовлетворенных комфортностью предоставления услуг организацией социальной сферы, по отношению к  числу опрошенных  получателей услуг, ответивших на данный вопрос",95,100,"Количество условий доступности организации для инвалидов (от одного до четырех)",3,{"$f":"INDEX(Индикаторы!AC20:AC22,MATCH('Количественные результаты'!AA12,Индикаторы!AA20:AA22,0))","v":20},"Количество условий доступности, позволяющих инвалидам получать услуги наравне с другими (от одного до четырех)",3,{"$f":"INDEX(Индикаторы!AF20:AF22,MATCH('Количественные результаты'!AD12,Индикаторы!AD20:AD22,0))","v":20},"Число получателей услуг-инвалидов, удовлетворенных доступностью услуг для инвалидов, по отношению к  числу опрошенных  получателей услуг- инвалидов, ответивших на соответствующий вопрос анкеты",0,100,"Число получателей услуг, удовлетворенных доброжелательностью, вежливостью работников организации социальной сферы, обеспечивающих первичный контакт и информирование получателя услуги,  по отношению к числу опрошенныхполучателей услуг, ответивших на соответствующий вопрос  анкеты",98,100,"Число  получателей услуг, удовлетворенных доброжелательностью, вежливостью работников организации социальной сферы, обеспечивающих непосредственное оказание услуги, по отношению к числу опрошенных получателей услуг, ответивших на соответствующий вопрос анкеты",95,100,"Число получателей услуг, удовлетворенных доброжелательностью, вежливостью работников организации социальной сферы при использовании дистанционных форм взаимодействия, по отношению к числу опрошенных получателей услуг, ответивших на соответствующий вопрос анкеты",85,100,"Число получателей услуг, которые готовы рекомендовать организацию родственникам и знакомым (могли бы ее рекомендовать, если бы была возможность выбора организации, по отношению к числу опрошенных получателей услуг, ответивших на соответствующий вопрос анкеты",97,100,"Число получателей услуг, удовлетворенных организационными условиями предоставления услуг, по отношению к числу опрошенных получателей услуг  ответивших на соответствующий вопрос анкеты",92,100,"Число  получателей услуг, удовлетворенных в целом условиями оказания услуг в организации социальной сферы, по отношению к\nчислу опрошенных  получателей услуг, ответивших на соответствующий вопрос анкеты",95,100]
[6,"МУНИЦИПАЛЬНОЕ БЮДЖЕТНОЕ ДОШКОЛЬНОЕ ОБРАЗОВАТЕЛЬНОЕ УЧРЕЖДЕНИЕ ВЕРХНЕУСЛОНСКИЙ ДЕТСКИЙ САД \"СОЛНЫШКО\" ВЕРХНЕУСЛОНСКОГО МУНИЦИПАЛЬНОГО РАЙОНА РЕСПУБЛИКИ ТАТАРСТАН, 1615012130","97","90","92.7","объем информации (количество материалов/единиц информации), размещенной  на информационных стендах в помещении организации по отношению к количеству  материалов, размещение которых установлено нормативными правовыми актами",87,{"$f":"INDEX(Индикаторы!H23:H24,MATCH('Количественные результаты'!F13,Индикаторы!F23:F24,0))","v":100},"Объем информации (количество материалов/единиц информации), размещенной  на официальном сайте организации по отношению к количеству  материалов, размещение которых установлено нормативными правовыми актами",85,{"$f":"INDEX(Индикаторы!K23:K24,MATCH('Количественные результаты'!I13,Индикаторы!I23:I24,0))","v":100},"Количество  функционирующих дистанционных способов взаимодействия (от одного до трех способов включительно)",3,{"$f":"INDEX(Индикаторы!N23:N25,MATCH('Количественные результаты'!L13,Индикаторы!L23:L25,0))","v":30},"Число получателей услуг, удовлетворенных качеством, полнотой и доступностью информации о деятельности организации социальной сферы, размещенной на информационных стендах в помещении организации социальной сферы по отношению к числу опрошенных  получателей услуг, ответивших на соответствующий вопрос анкеты",84,100,"число получателей услуг, удовлетворенных качеством, полнотой и доступностью информации о деятельности организации социальной сферы, размещенной на официальном сайте организации социальной сферы по отношению к  числу опрошенных  получателей услуг, ответивших на соответствующий вопрос анкеты",80,100,"Количество комфортных условий для предоставления услуг (от одного до четырех включительно)",4,{"$f":"INDEX(Индикаторы!W23:W25,MATCH('Количественные результаты'!U13,Индикаторы!U23:U25,0))","v":20},"Число получателей услуг, удовлетворенных комфортностью предоставления услуг организацией социальной сферы, по отношению к  числу опрошенных  получателей услуг, ответивших на данный вопрос",85,100,"Количество условий доступности организации для инвалидов (от одного до четырех)",3,{"$f":"INDEX(Индикаторы!AC23:AC25,MATCH('Количественные результаты'!AA13,Индикаторы!AA23:AA25,0))","v":20},"Количество условий доступности, позволяющих инвалидам получать услуги наравне с другими (от одного до четырех)",3,{"$f":"INDEX(Индикаторы!AF23:AF25,MATCH('Количественные результаты'!AD13,Индикаторы!AD23:AD25,0))","v":20},"Число получателей услуг-инвалидов, удовлетворенных доступностью услуг для инвалидов, по отношению к  числу опрошенных  получателей услуг- инвалидов, ответивших на соответствующий вопрос анкеты",0,100,"Число получателей услуг, удовлетворенных доброжелательностью, вежливостью работников организации социальной сферы, обеспечивающих первичный контакт и информирование получателя услуги,  по отношению к числу опрошенныхполучателей услуг, ответивших на соответствующий вопрос  анкеты",85,100,"Число  получателей услуг, удовлетворенных доброжелательностью, вежливостью работников организации социальной сферы, обеспечивающих непосредственное оказание услуги, по отношению к числу опрошенных получателей услуг, ответивших на соответствующий вопрос анкеты",88,100,"Число получателей услуг, удовлетворенных доброжелательностью, вежливостью работников организации социальной сферы при использовании дистанционных форм взаимодействия, по отношению к числу опрошенных получателей услуг, ответивших на соответствующий вопрос анкеты",84,100,"Число получателей услуг, которые готовы рекомендовать организацию родственникам и знакомым (могли бы ее рекомендовать, если бы была возможность выбора организации, по отношению к числу опрошенных получателей услуг, ответивших на соответствующий вопрос анкеты",82,100,"Число получателей услуг, удовлетворенных организационными условиями предоставления услуг, по отношению к числу опрошенных получателей услуг  ответивших на соответствующий вопрос анкеты",85,100,"Число  получателей услуг, удовлетворенных в целом условиями оказания услуг в организации социальной сферы, по отношению к\nчислу опрошенных  получателей услуг, ответивших на соответствующий вопрос анкеты",85,100]
[7,"МУНИЦИПАЛЬНОЕ БЮДЖЕТНОЕ ДОШКОЛЬНОЕ ОБРАЗОВАТЕЛЬНОЕ УЧРЕЖДЕНИЕ \"ВЕРХНЕУСЛОНСКИЙ ДЕТСКИЙ САД \"БЕРЕЗКА\" ВЕРХНЕУСЛОНСКОГО МУНИЦИПАЛЬНОГО РАЙОНА РЕСПУБЛИКИ ТАТАРСТАН, 1615004097","116","111","95.6","объем информации (количество материалов/единиц информации), размещенной  на информационных стендах в помещении организации по отношению к количеству  материалов, размещение которых установлено нормативными правовыми актами",92,{"$f":"INDEX(Индикаторы!H26:H27,MATCH('Количественные результаты'!F14,Индикаторы!F26:F27,0))","v":100},"Объем информации (количество материалов/единиц информации), размещенной  на официальном сайте организации по отношению к количеству  материалов, размещение которых установлено нормативными правовыми актами",89,{"$f":"INDEX(Индикаторы!K26:K27,MATCH('Количественные результаты'!I14,Индикаторы!I26:I27,0))","v":100},"Количество  функционирующих дистанционных способов взаимодействия (от одного до трех способов включительно)",3,{"$f":"INDEX(Индикаторы!N26:N28,MATCH('Количественные результаты'!L14,Индикаторы!L26:L28,0))","v":30},"Число получателей услуг, удовлетворенных качеством, полнотой и доступностью информации о деятельности организации социальной сферы, размещенной на информационных стендах в помещении организации социальной сферы по отношению к числу опрошенных  получателей услуг, ответивших на соответствующий вопрос анкеты",92,100,"число получателей услуг, удовлетворенных качеством, полнотой и доступностью информации о деятельности организации социальной сферы, размещенной на официальном сайте организации социальной сферы по отношению к  числу опрошенных  получателей услуг, ответивших на соответствующий вопрос анкеты",90,100,"Количество комфортных условий для предоставления услуг (от одного до четырех включительно)",3,{"$f":"INDEX(Индикаторы!W26:W28,MATCH('Количественные результаты'!U14,Индикаторы!U26:U28,0))","v":20},"Число получателей услуг, удовлетворенных комфортностью предоставления услуг организацией социальной сферы, по отношению к  числу опрошенных  получателей услуг, ответивших на данный вопрос",92,100,"Количество условий доступности организации для инвалидов (от одного до четырех)",3,{"$f":"INDEX(Индикаторы!AC26:AC28,MATCH('Количественные результаты'!AA14,Индикаторы!AA26:AA28,0))","v":20},"Количество условий доступности, позволяющих инвалидам получать услуги наравне с другими (от одного до четырех)",3,{"$f":"INDEX(Индикаторы!AF26:AF28,MATCH('Количественные результаты'!AD14,Индикаторы!AD26:AD28,0))","v":20},"Число получателей услуг-инвалидов, удовлетворенных доступностью услуг для инвалидов, по отношению к  числу опрошенных  получателей услуг- инвалидов, ответивших на соответствующий вопрос анкеты",0,100,"Число получателей услуг, удовлетворенных доброжелательностью, вежливостью работников организации социальной сферы, обеспечивающих первичный контакт и информирование получателя услуги,  по отношению к числу опрошенныхполучателей услуг, ответивших на соответствующий вопрос  анкеты",92,100,"Число  получателей услуг, удовлетворенных доброжелательностью, вежливостью работников организации социальной сферы, обеспечивающих непосредственное оказание услуги, по отношению к числу опрошенных получателей услуг, ответивших на соответствующий вопрос анкеты",92,100,"Число получателей услуг, удовлетворенных доброжелательностью, вежливостью работников организации социальной сферы при использовании дистанционных форм взаимодействия, по отношению к числу опрошенных получателей услуг, ответивших на соответствующий вопрос анкеты",85,100,"Число получателей услуг, которые готовы рекомендовать организацию родственникам и знакомым (могли бы ее рекомендовать, если бы была возможность выбора организации, по отношению к числу опрошенных получателей услуг, ответивших на соответствующий вопрос анкеты",89,100,"Число получателей услуг, удовлетворенных организационными условиями предоставления услуг, по отношению к числу опрошенных получателей услуг  ответивших на соответствующий вопрос анкеты",92,100,"Число  получателей услуг, удовлетворенных в целом условиями оказания услуг в организации социальной сферы, по отношению к\nчислу опрошенных  получателей услуг, ответивших на соответствующий вопрос анкеты",92,100]
[8,"МУНИЦИПАЛЬНОЕ БЮДЖЕТНОЕ ДОШКОЛЬНОЕ ОБРАЗОВАТЕЛЬНОЕ УЧРЕЖДЕНИЕ \"КИЛЬДЕЕВСКИЙ ДЕТСКИЙ САД\" ВЕРХНЕУСЛОНСКОГО МУНИЦИПАЛЬНОГО РАЙОНА РЕСПУБЛИКИ ТАТАРСТАН, 1615004153","2","2","100.0","объем информации (количество материалов/единиц информации), размещенной  на информационных стендах в помещении организации по отношению к количеству  материалов, размещение которых установлено нормативными правовыми актами",93,{"$f":"INDEX(Индикаторы!H29:H30,MATCH('Количественные результаты'!F15,Индикаторы!F29:F30,0))","v":100},"Объем информации (количество материалов/единиц информации), размещенной  на официальном сайте организации по отношению к количеству  материалов, размещение которых установлено нормативными правовыми актами",88,{"$f":"INDEX(Индикаторы!K29:K30,MATCH('Количественные результаты'!I15,Индикаторы!I29:I30,0))","v":100},"Количество  функционирующих дистанционных способов взаимодействия (от одного до трех способов включительно)",3,{"$f":"INDEX(Индикаторы!N29:N31,MATCH('Количественные результаты'!L15,Индикаторы!L29:L31,0))","v":30},"Число получателей услуг, удовлетворенных качеством, полнотой и доступностью информации о деятельности организации социальной сферы, размещенной на информационных стендах в помещении организации социальной сферы по отношению к числу опрошенных  получателей услуг, ответивших на соответствующий вопрос анкеты",100,100,"число получателей услуг, удовлетворенных качеством, полнотой и доступностью информации о деятельности организации социальной сферы, размещенной на официальном сайте организации социальной сферы по отношению к  числу опрошенных  получателей услуг, ответивших на соответствующий вопрос анкеты",100,100,"Количество комфортных условий для предоставления услуг (от одного до четырех включительно)",3,{"$f":"INDEX(Индикаторы!W29:W31,MATCH('Количественные результаты'!U15,Индикаторы!U29:U31,0))","v":20},"Число получателей услуг, удовлетворенных комфортностью предоставления услуг организацией социальной сферы, по отношению к  числу опрошенных  получателей услуг, ответивших на данный вопрос",100,100,"Количество условий доступности организации для инвалидов (от одного до четырех)",3,{"$f":"INDEX(Индикаторы!AC29:AC31,MATCH('Количественные результаты'!AA15,Индикаторы!AA29:AA31,0))","v":20},"Количество условий доступности, позволяющих инвалидам получать услуги наравне с другими (от одного до четырех)",3,{"$f":"INDEX(Индикаторы!AF29:AF31,MATCH('Количественные результаты'!AD15,Индикаторы!AD29:AD31,0))","v":20},"Число получателей услуг-инвалидов, удовлетворенных доступностью услуг для инвалидов, по отношению к  числу опрошенных  получателей услуг- инвалидов, ответивших на соответствующий вопрос анкеты",0,100,"Число получателей услуг, удовлетворенных доброжелательностью, вежливостью работников организации социальной сферы, обеспечивающих первичный контакт и информирование получателя услуги,  по отношению к числу опрошенныхполучателей услуг, ответивших на соответствующий вопрос  анкеты",100,100,"Число  получателей услуг, удовлетворенных доброжелательностью, вежливостью работников организации социальной сферы, обеспечивающих непосредственное оказание услуги, по отношению к числу опрошенных получателей услуг, ответивших на соответствующий вопрос анкеты",100,100,"Число получателей услуг, удовлетворенных доброжелательностью, вежливостью работников организации социальной сферы при использовании дистанционных форм взаимодействия, по отношению к числу опрошенных получателей услуг, ответивших на соответствующий вопрос анкеты",100,100,"Число получателей услуг, которые готовы рекомендовать организацию родственникам и знакомым (могли бы ее рекомендовать, если бы была возможность выбора организации, по отношению к числу опрошенных получателей услуг, ответивших на соответствующий вопрос анкеты",100,100,"Число получателей услуг, удовлетворенных организационными условиями предоставления услуг, по отношению к числу опрошенных получателей услуг  ответивших на соответствующий вопрос анкеты",100,100,"Число  получателей услуг, удовлетворенных в целом условиями оказания услуг в организации социальной сферы, по отношению к\nчислу опрошенных  получателей услуг, ответивших на соответствующий вопрос анкеты",100,100]
[9,"МУНИЦИПАЛЬНОЕ БЮДЖЕТНОЕ ДОШКОЛЬНОЕ ОБРАЗОВАТЕЛЬНОЕ УЧРЕЖДЕНИЕ \"КОРГУЗИНСКИЙ ДЕТСКИЙ САД\" ВЕРХНЕУСЛОНСКОГО МУНИЦИПАЛЬНОГО РАЙОНА РЕСПУБЛИКИ ТАТАРСТАН, 1615003858","11","11","100.0","объем информации (количество материалов/единиц информации), размещенной  на информационных стендах в помещении организации по отношению к количеству  материалов, размещение которых установлено нормативными правовыми актами",95,{"$f":"INDEX(Индикаторы!H32:H33,MATCH('Количественные результаты'!F16,Индикаторы!F32:F33,0))","v":100},"Объем информации (количество материалов/единиц информации), размещенной  на официальном сайте организации по отношению к количеству  материалов, размещение которых установлено нормативными правовыми актами",94,{"$f":"INDEX(Индикаторы!K32:K33,MATCH('Количественные результаты'!I16,Индикаторы!I32:I33,0))","v":100},"Количество  функционирующих дистанционных способов взаимодействия (от одного до трех способов включительно)",3,{"$f":"INDEX(Индикаторы!N32:N34,MATCH('Количественные результаты'!L16,Индикаторы!L32:L34,0))","v":30},"Число получателей услуг, удовлетворенных качеством, полнотой и доступностью информации о деятельности организации социальной сферы, размещенной на информационных стендах в помещении организации социальной сферы по отношению к числу опрошенных  получателей услуг, ответивших на соответствующий вопрос анкеты",95,100,"число получателей услуг, удовлетворенных качеством, полнотой и доступностью информации о деятельности организации социальной сферы, размещенной на официальном сайте организации социальной сферы по отношению к  числу опрошенных  получателей услуг, ответивших на соответствующий вопрос анкеты",94,100,"Количество комфортных условий для предоставления услуг (от одного до четырех включительно)",3,{"$f":"INDEX(Индикаторы!W32:W34,MATCH('Количественные результаты'!U16,Индикаторы!U32:U34,0))","v":20},"Число получателей услуг, удовлетворенных комфортностью предоставления услуг организацией социальной сферы, по отношению к  числу опрошенных  получателей услуг, ответивших на данный вопрос",92,100,"Количество условий доступности организации для инвалидов (от одного до четырех)",3,{"$f":"INDEX(Индикаторы!AC32:AC34,MATCH('Количественные результаты'!AA16,Индикаторы!AA32:AA34,0))","v":20},"Количество условий доступности, позволяющих инвалидам получать услуги наравне с другими (от одного до четырех)",3,{"$f":"INDEX(Индикаторы!AF32:AF34,MATCH('Количественные результаты'!AD16,Индикаторы!AD32:AD34,0))","v":20},"Число получателей услуг-инвалидов, удовлетворенных доступностью услуг для инвалидов, по отношению к  числу опрошенных  получателей услуг- инвалидов, ответивших на соответствующий вопрос анкеты",0,100,"Число получателей услуг, удовлетворенных доброжелательностью, вежливостью работников организации социальной сферы, обеспечивающих первичный контакт и информирование получателя услуги,  по отношению к числу опрошенныхполучателей услуг, ответивших на соответствующий вопрос  анкеты",92,100,"Число  получателей услуг, удовлетворенных доброжелательностью, вежливостью работников организации социальной сферы, обеспечивающих непосредственное оказание услуги, по отношению к числу опрошенных получателей услуг, ответивших на соответствующий вопрос анкеты",92,100,"Число получателей услуг, удовлетворенных доброжелательностью, вежливостью работников организации социальной сферы при использовании дистанционных форм взаимодействия, по отношению к числу опрошенных получателей услуг, ответивших на соответствующий вопрос анкеты",92,100,"Число получателей услуг, которые готовы рекомендовать организацию родственникам и знакомым (могли бы ее рекомендовать, если бы была возможность выбора организации, по отношению к числу опрошенных получателей услуг, ответивших на соответствующий вопрос анкеты",92,100,"Число получателей услуг, удовлетворенных организационными условиями предоставления услуг, по отношению к числу опрошенных получателей услуг  ответивших на соответствующий вопрос анкеты",90,100,"Число  получателей услуг, удовлетворенных в целом условиями оказания услуг в организации социальной сферы, по отношению к\nчислу опрошенных  получателей услуг, ответивших на соответствующий вопрос анкеты",92,100]
[10,"МУНИЦИПАЛЬНОЕ БЮДЖЕТНОЕ ДОШКОЛЬНОЕ ОБРАЗОВАТЕЛЬНОЕ УЧРЕЖДЕНИЕ \"КУРАЛОВСКИЙ ДЕТСКИЙ САД\" ВЕРХНЕУСЛОНСКОГО МУНИЦИПАЛЬНОГО РАЙОНА РЕСПУБЛИКИ ТАТАРСТАН, 1615003865","42","40","95.2","объем информации (количество материалов/единиц информации), размещенной  на информационных стендах в помещении организации по отношению к количеству  материалов, размещение которых установлено нормативными правовыми актами",95,{"$f":"INDEX(Индикаторы!H35:H36,MATCH('Количественные результаты'!F17,Индикаторы!F35:F36,0))","v":100},"Объем информации (количество материалов/единиц информации), размещенной  на официальном сайте организации по отношению к количеству  материалов, размещение которых установлено нормативными правовыми актами",95,{"$f":"INDEX(Индикаторы!K35:K36,MATCH('Количественные результаты'!I17,Индикаторы!I35:I36,0))","v":100},"Количество  функционирующих дистанционных способов взаимодействия (от одного до трех способов включительно)",3,{"$f":"INDEX(Индикаторы!N35:N37,MATCH('Количественные результаты'!L17,Индикаторы!L35:L37,0))","v":30},"Число получателей услуг, удовлетворенных качеством, полнотой и доступностью информации о деятельности организации социальной сферы, размещенной на информационных стендах в помещении организации социальной сферы по отношению к числу опрошенных  получателей услуг, ответивших на соответствующий вопрос анкеты",93,100,"число получателей услуг, удовлетворенных качеством, полнотой и доступностью информации о деятельности организации социальной сферы, размещенной на официальном сайте организации социальной сферы по отношению к  числу опрошенных  получателей услуг, ответивших на соответствующий вопрос анкеты",90,100,"Количество комфортных условий для предоставления услуг (от одного до четырех включительно)",3,{"$f":"INDEX(Индикаторы!W35:W37,MATCH('Количественные результаты'!U17,Индикаторы!U35:U37,0))","v":20},"Число получателей услуг, удовлетворенных комфортностью предоставления услуг организацией социальной сферы, по отношению к  числу опрошенных  получателей услуг, ответивших на данный вопрос",91,100,"Количество условий доступности организации для инвалидов (от одного до четырех)",3,{"$f":"INDEX(Индикаторы!AC35:AC37,MATCH('Количественные результаты'!AA17,Индикаторы!AA35:AA37,0))","v":20},"Количество условий доступности, позволяющих инвалидам получать услуги наравне с другими (от одного до четырех)",3,{"$f":"INDEX(Индикаторы!AF35:AF37,MATCH('Количественные результаты'!AD17,Индикаторы!AD35:AD37,0))","v":20},"Число получателей услуг-инвалидов, удовлетворенных доступностью услуг для инвалидов, по отношению к  числу опрошенных  получателей услуг- инвалидов, ответивших на соответствующий вопрос анкеты",0,100,"Число получателей услуг, удовлетворенных доброжелательностью, вежливостью работников организации социальной сферы, обеспечивающих первичный контакт и информирование получателя услуги,  по отношению к числу опрошенныхполучателей услуг, ответивших на соответствующий вопрос  анкеты",94,100,"Число  получателей услуг, удовлетворенных доброжелательностью, вежливостью работников организации социальной сферы, обеспечивающих непосредственное оказание услуги, по отношению к числу опрошенных получателей услуг, ответивших на соответствующий вопрос анкеты",92,100,"Число получателей услуг, удовлетворенных доброжелательностью, вежливостью работников организации социальной сферы при использовании дистанционных форм взаимодействия, по отношению к числу опрошенных получателей услуг, ответивших на соответствующий вопрос анкеты",88,100,"Число получателей услуг, которые готовы рекомендовать организацию родственникам и знакомым (могли бы ее рекомендовать, если бы была возможность выбора организации, по отношению к числу опрошенных получателей услуг, ответивших на соответствующий вопрос анкеты",91,100,"Число получателей услуг, удовлетворенных организационными условиями предоставления услуг, по отношению к числу опрошенных получателей услуг  ответивших на соответствующий вопрос анкеты",92,100,"Число  получателей услуг, удовлетворенных в целом условиями оказания услуг в организации социальной сферы, по отношению к\nчислу опрошенных  получателей услуг, ответивших на соответствующий вопрос анкеты",92,100]
[11,"МУНИЦИПАЛЬНОЕ БЮДЖЕТНОЕ ДОШКОЛЬНОЕ ОБРАЗОВАТЕЛЬНОЕ УЧРЕЖДЕНИЕ \"МАЙДАНСКИЙ ДЕТСКИЙ САД\" ВЕРХНЕУСЛОНСКОГО МУНИЦИПАЛЬНОГО РАЙОНА РЕСПУБЛИКИ ТАТАРСТАН, 1615004146","6","6","100.0","объем информации (количество материалов/единиц информации), размещенной  на информационных стендах в помещении организации по отношению к количеству  материалов, размещение которых установлено нормативными правовыми актами",95,{"$f":"INDEX(Индикаторы!H38:H39,MATCH('Количественные результаты'!F18,Индикаторы!F38:F39,0))","v":100},"Объем информации (количество материалов/единиц информации), размещенной  на официальном сайте организации по отношению к количеству  материалов, размещение которых установлено нормативными правовыми актами",90,{"$f":"INDEX(Индикаторы!K38:K39,MATCH('Количественные результаты'!I18,Индикаторы!I38:I39,0))","v":100},"Количество  функционирующих дистанционных способов взаимодействия (от одного до трех способов включительно)",3,{"$f":"INDEX(Индикаторы!N38:N40,MATCH('Количественные результаты'!L18,Индикаторы!L38:L40,0))","v":30},"Число получателей услуг, удовлетворенных качеством, полнотой и доступностью информации о деятельности организации социальной сферы, размещенной на информационных стендах в помещении организации социальной сферы по отношению к числу опрошенных  получателей услуг, ответивших на соответствующий вопрос анкеты",100,100,"число получателей услуг, удовлетворенных качеством, полнотой и доступностью информации о деятельности организации социальной сферы, размещенной на официальном сайте организации социальной сферы по отношению к  числу опрошенных  получателей услуг, ответивших на соответствующий вопрос анкеты",92,100,"Количество комфортных условий для предоставления услуг (от одного до четырех включительно)",3,{"$f":"INDEX(Индикаторы!W38:W40,MATCH('Количественные результаты'!U18,Индикаторы!U38:U40,0))","v":20},"Число получателей услуг, удовлетворенных комфортностью предоставления услуг организацией социальной сферы, по отношению к  числу опрошенных  получателей услуг, ответивших на данный вопрос",100,100,"Количество условий доступности организации для инвалидов (от одного до четырех)",3,{"$f":"INDEX(Индикаторы!AC38:AC40,MATCH('Количественные результаты'!AA18,Индикаторы!AA38:AA40,0))","v":20},"Количество условий доступности, позволяющих инвалидам получать услуги наравне с другими (от одного до четырех)",3,{"$f":"INDEX(Индикаторы!AF38:AF40,MATCH('Количественные результаты'!AD18,Индикаторы!AD38:AD40,0))","v":20},"Число получателей услуг-инвалидов, удовлетворенных доступностью услуг для инвалидов, по отношению к  числу опрошенных  получателей услуг- инвалидов, ответивших на соответствующий вопрос анкеты",0,100,"Число получателей услуг, удовлетворенных доброжелательностью, вежливостью работников организации социальной сферы, обеспечивающих первичный контакт и информирование получателя услуги,  по отношению к числу опрошенныхполучателей услуг, ответивших на соответствующий вопрос  анкеты",100,100,"Число  получателей услуг, удовлетворенных доброжелательностью, вежливостью работников организации социальной сферы, обеспечивающих непосредственное оказание услуги, по отношению к числу опрошенных получателей услуг, ответивших на соответствующий вопрос анкеты",100,100,"Число получателей услуг, удовлетворенных доброжелательностью, вежливостью работников организации социальной сферы при использовании дистанционных форм взаимодействия, по отношению к числу опрошенных получателей услуг, ответивших на соответствующий вопрос анкеты",92,100,"Число получателей услуг, которые готовы рекомендовать организацию родственникам и знакомым (могли бы ее рекомендовать, если бы была возможность выбора организации, по отношению к числу опрошенных получателей услуг, ответивших на соответствующий вопрос анкеты",100,100,"Число получателей услуг, удовлетворенных организационными условиями предоставления услуг, по отношению к числу опрошенных получателей услуг  ответивших на соответствующий вопрос анкеты",100,100,"Число  получателей услуг, удовлетворенных в целом условиями оказания услуг в организации социальной сферы, по отношению к\nчислу опрошенных  получателей услуг, ответивших на соответствующий вопрос анкеты",100,100]
[12,"МУНИЦИПАЛЬНОЕ  БЮДЖЕТНОЕ ДОШКОЛЬНОЕ ОБРАЗОВАТЕЛЬНОЕ УЧРЕЖДЕНИЕ \"НАБЕРЕЖНО-МОРКВАШСКИЙ ДЕТСКИЙ САД\" ВЕРХНЕУСЛОНСКОГО МУНИЦИПАЛЬНОГО РАЙОНА РЕСПУБЛИКИ ТАТАРСТАН, 1615006961","50","43","86.0","объем информации (количество материалов/единиц информации), размещенной  на информационных стендах в помещении организации по отношению к количеству  материалов, размещение которых установлено нормативными правовыми актами",85,{"$f":"INDEX(Индикаторы!H41:H42,MATCH('Количественные результаты'!F19,Индикаторы!F41:F42,0))","v":100},"Объем информации (количество материалов/единиц информации), размещенной  на официальном сайте организации по отношению к количеству  материалов, размещение которых установлено нормативными правовыми актами",89,{"$f":"INDEX(Индикаторы!K41:K42,MATCH('Количественные результаты'!I19,Индикаторы!I41:I42,0))","v":100},"Количество  функционирующих дистанционных способов взаимодействия (от одного до трех способов включительно)",3,{"$f":"INDEX(Индикаторы!N41:N43,MATCH('Количественные результаты'!L19,Индикаторы!L41:L43,0))","v":30},"Число получателей услуг, удовлетворенных качеством, полнотой и доступностью информации о деятельности организации социальной сферы, размещенной на информационных стендах в помещении организации социальной сферы по отношению к числу опрошенных  получателей услуг, ответивших на соответствующий вопрос анкеты",89,100,"число получателей услуг, удовлетворенных качеством, полнотой и доступностью информации о деятельности организации социальной сферы, размещенной на официальном сайте организации социальной сферы по отношению к  числу опрошенных  получателей услуг, ответивших на соответствующий вопрос анкеты",87,100,"Количество комфортных условий для предоставления услуг (от одного до четырех включительно)",3,{"$f":"INDEX(Индикаторы!W41:W43,MATCH('Количественные результаты'!U19,Индикаторы!U41:U43,0))","v":20},"Число получателей услуг, удовлетворенных комфортностью предоставления услуг организацией социальной сферы, по отношению к  числу опрошенных  получателей услуг, ответивших на данный вопрос",86,100,"Количество условий доступности организации для инвалидов (от одного до четырех)",3,{"$f":"INDEX(Индикаторы!AC41:AC43,MATCH('Количественные результаты'!AA19,Индикаторы!AA41:AA43,0))","v":20},"Количество условий доступности, позволяющих инвалидам получать услуги наравне с другими (от одного до четырех)",3,{"$f":"INDEX(Индикаторы!AF41:AF43,MATCH('Количественные результаты'!AD19,Индикаторы!AD41:AD43,0))","v":20},"Число получателей услуг-инвалидов, удовлетворенных доступностью услуг для инвалидов, по отношению к  числу опрошенных  получателей услуг- инвалидов, ответивших на соответствующий вопрос анкеты",0,100,"Число получателей услуг, удовлетворенных доброжелательностью, вежливостью работников организации социальной сферы, обеспечивающих первичный контакт и информирование получателя услуги,  по отношению к числу опрошенныхполучателей услуг, ответивших на соответствующий вопрос  анкеты",89,100,"Число  получателей услуг, удовлетворенных доброжелательностью, вежливостью работников организации социальной сферы, обеспечивающих непосредственное оказание услуги, по отношению к числу опрошенных получателей услуг, ответивших на соответствующий вопрос анкеты",88,100,"Число получателей услуг, удовлетворенных доброжелательностью, вежливостью работников организации социальной сферы при использовании дистанционных форм взаимодействия, по отношению к числу опрошенных получателей услуг, ответивших на соответствующий вопрос анкеты",85,100,"Число получателей услуг, которые готовы рекомендовать организацию родственникам и знакомым (могли бы ее рекомендовать, если бы была возможность выбора организации, по отношению к числу опрошенных получателей услуг, ответивших на соответствующий вопрос анкеты",87,100,"Число получателей услуг, удовлетворенных организационными условиями предоставления услуг, по отношению к числу опрошенных получателей услуг  ответивших на соответствующий вопрос анкеты",85,100,"Число  получателей услуг, удовлетворенных в целом условиями оказания услуг в организации социальной сферы, по отношению к\nчислу опрошенных  получателей услуг, ответивших на соответствующий вопрос анкеты",87,100]
[13,"МУНИЦИПАЛЬНОЕ БЮДЖЕТНОЕ ДОШКОЛЬНОЕ ОБРАЗОВАТЕЛЬНОЕ УЧРЕЖДЕНИЕ \"НИЖНЕУСЛОНСКИЙ ДЕТСКИЙ САД\" ВЕРХНЕУСЛОНСКОГО МУНИЦИПАЛЬНОГО РАЙОНА РЕСПУБЛИКИ ТАТАРСТАН, 1615004139","21","21","100.0","объем информации (количество материалов/единиц информации), размещенной  на информационных стендах в помещении организации по отношению к количеству  материалов, размещение которых установлено нормативными правовыми актами",95,{"$f":"INDEX(Индикаторы!H44:H45,MATCH('Количественные результаты'!F20,Индикаторы!F44:F45,0))","v":100},"Объем информации (количество материалов/единиц информации), размещенной  на официальном сайте организации по отношению к количеству  материалов, размещение которых установлено нормативными правовыми актами",95,{"$f":"INDEX(Индикаторы!K44:K45,MATCH('Количественные результаты'!I20,Индикаторы!I44:I45,0))","v":100},"Количество  функционирующих дистанционных способов взаимодействия (от одного до трех способов включительно)",3,{"$f":"INDEX(Индикаторы!N44:N46,MATCH('Количественные результаты'!L20,Индикаторы!L44:L46,0))","v":30},"Число получателей услуг, удовлетворенных качеством, полнотой и доступностью информации о деятельности организации социальной сферы, размещенной на информационных стендах в помещении организации социальной сферы по отношению к числу опрошенных  получателей услуг, ответивших на соответствующий вопрос анкеты",92,100,"число получателей услуг, удовлетворенных качеством, полнотой и доступностью информации о деятельности организации социальной сферы, размещенной на официальном сайте организации социальной сферы по отношению к  числу опрошенных  получателей услуг, ответивших на соответствующий вопрос анкеты",90,100,"Количество комфортных условий для предоставления услуг (от одного до четырех включительно)",3,{"$f":"INDEX(Индикаторы!W44:W46,MATCH('Количественные результаты'!U20,Индикаторы!U44:U46,0))","v":20},"Число получателей услуг, удовлетворенных комфортностью предоставления услуг организацией социальной сферы, по отношению к  числу опрошенных  получателей услуг, ответивших на данный вопрос",91,100,"Количество условий доступности организации для инвалидов (от одного до четырех)",3,{"$f":"INDEX(Индикаторы!AC44:AC46,MATCH('Количественные результаты'!AA20,Индикаторы!AA44:AA46,0))","v":20},"Количество условий доступности, позволяющих инвалидам получать услуги наравне с другими (от одного до четырех)",3,{"$f":"INDEX(Индикаторы!AF44:AF46,MATCH('Количественные результаты'!AD20,Индикаторы!AD44:AD46,0))","v":20},"Число получателей услуг-инвалидов, удовлетворенных доступностью услуг для инвалидов, по отношению к  числу опрошенных  получателей услуг- инвалидов, ответивших на соответствующий вопрос анкеты",0,100,"Число получателей услуг, удовлетворенных доброжелательностью, вежливостью работников организации социальной сферы, обеспечивающих первичный контакт и информирование получателя услуги,  по отношению к числу опрошенныхполучателей услуг, ответивших на соответствующий вопрос  анкеты",95,100,"Число  получателей услуг, удовлетворенных доброжелательностью, вежливостью работников организации социальной сферы, обеспечивающих непосредственное оказание услуги, по отношению к числу опрошенных получателей услуг, ответивших на соответствующий вопрос анкеты",92,100,"Число получателей услуг, удовлетворенных доброжелательностью, вежливостью работников организации социальной сферы при использовании дистанционных форм взаимодействия, по отношению к числу опрошенных получателей услуг, ответивших на соответствующий вопрос анкеты",94,100,"Число получателей услуг, которые готовы рекомендовать организацию родственникам и знакомым (могли бы ее рекомендовать, если бы была возможность выбора организации, по отношению к числу опрошенных получателей услуг, ответивших на соответствующий вопрос анкеты",93,100,"Число получателей услуг, удовлетворенных организационными условиями предоставления услуг, по отношению к числу опрошенных получателей услуг  ответивших на соответствующий вопрос анкеты",95,100,"Число  получателей услуг, удовлетворенных в целом условиями оказания услуг в организации социальной сферы, по отношению к\nчислу опрошенных  получателей услуг, ответивших на соответствующий вопрос анкеты",94,100]
[14,"МУНИЦИПАЛЬНОЕ БЮДЖЕТНОЕ ДОШКОЛЬНОЕ ОБРАЗОВАТЕЛЬНОЕ УЧРЕЖДЕНИЕ \"ПЕЧИЩИНСКИЙ ДЕТСКИЙ САД\" ВЕРХНЕУСЛОНСКОГО МУНИЦИПАЛЬНОГО РАЙОНА РЕСПУБЛИКИ ТАТАРСТАН, 1615004058","22","21","95.4","объем информации (количество материалов/единиц информации), размещенной  на информационных стендах в помещении организации по отношению к количеству  материалов, размещение которых установлено нормативными правовыми актами",86,{"$f":"INDEX(Индикаторы!H47:H48,MATCH('Количественные результаты'!F21,Индикаторы!F47:F48,0))","v":100},"Объем информации (количество материалов/единиц информации), размещенной  на официальном сайте организации по отношению к количеству  материалов, размещение которых установлено нормативными правовыми актами",84,{"$f":"INDEX(Индикаторы!K47:K48,MATCH('Количественные результаты'!I21,Индикаторы!I47:I48,0))","v":100},"Количество  функционирующих дистанционных способов взаимодействия (от одного до трех способов включительно)",3,{"$f":"INDEX(Индикаторы!N47:N49,MATCH('Количественные результаты'!L21,Индикаторы!L47:L49,0))","v":30},"Число получателей услуг, удовлетворенных качеством, полнотой и доступностью информации о деятельности организации социальной сферы, размещенной на информационных стендах в помещении организации социальной сферы по отношению к числу опрошенных  получателей услуг, ответивших на соответствующий вопрос анкеты",93,100,"число получателей услуг, удовлетворенных качеством, полнотой и доступностью информации о деятельности организации социальной сферы, размещенной на официальном сайте организации социальной сферы по отношению к  числу опрошенных  получателей услуг, ответивших на соответствующий вопрос анкеты",94,100,"Количество комфортных условий для предоставления услуг (от одного до четырех включительно)",3,{"$f":"INDEX(Индикаторы!W47:W49,MATCH('Количественные результаты'!U21,Индикаторы!U47:U49,0))","v":20},"Число получателей услуг, удовлетворенных комфортностью предоставления услуг организацией социальной сферы, по отношению к  числу опрошенных  получателей услуг, ответивших на данный вопрос",92,100,"Количество условий доступности организации для инвалидов (от одного до четырех)",3,{"$f":"INDEX(Индикаторы!AC47:AC49,MATCH('Количественные результаты'!AA21,Индикаторы!AA47:AA49,0))","v":20},"Количество условий доступности, позволяющих инвалидам получать услуги наравне с другими (от одного до четырех)",3,{"$f":"INDEX(Индикаторы!AF47:AF49,MATCH('Количественные результаты'!AD21,Индикаторы!AD47:AD49,0))","v":20},"Число получателей услуг-инвалидов, удовлетворенных доступностью услуг для инвалидов, по отношению к  числу опрошенных  получателей услуг- инвалидов, ответивших на соответствующий вопрос анкеты",0,100,"Число получателей услуг, удовлетворенных доброжелательностью, вежливостью работников организации социальной сферы, обеспечивающих первичный контакт и информирование получателя услуги,  по отношению к числу опрошенныхполучателей услуг, ответивших на соответствующий вопрос  анкеты",84,100,"Число  получателей услуг, удовлетворенных доброжелательностью, вежливостью работников организации социальной сферы, обеспечивающих непосредственное оказание услуги, по отношению к числу опрошенных получателей услуг, ответивших на соответствующий вопрос анкеты",85,100,"Число получателей услуг, удовлетворенных доброжелательностью, вежливостью работников организации социальной сферы при использовании дистанционных форм взаимодействия, по отношению к числу опрошенных получателей услуг, ответивших на соответствующий вопрос анкеты",84,100,"Число получателей услуг, которые готовы рекомендовать организацию родственникам и знакомым (могли бы ее рекомендовать, если бы была возможность выбора организации, по отношению к числу опрошенных получателей услуг, ответивших на соответствующий вопрос анкеты",81,100,"Число получателей услуг, удовлетворенных организационными условиями предоставления услуг, по отношению к числу опрошенных получателей услуг  ответивших на соответствующий вопрос анкеты",84,100,"Число  получателей услуг, удовлетворенных в целом условиями оказания услуг в организации социальной сферы, по отношению к\nчислу опрошенных  получателей услуг, ответивших на соответствующий вопрос анкеты",85,100]
[15,"МУНИЦИПАЛЬНОЕ БЮДЖЕТНОЕ ДОШКОЛЬНОЕ ОБРАЗОВАТЕЛЬНОЕ УЧРЕЖДЕНИЕ \"ТАТАРСКО-БУРНАШЕВСКИЙ ДЕТСКИЙ САД\" ВЕРХНЕУСЛОНСКОГО МУНИЦИПАЛЬНОГО РАЙОНА РЕСПУБЛИКИ ТАТАРСТАН, 1615004114","21","21","100.0","объем информации (количество материалов/единиц информации), размещенной  на информационных стендах в помещении организации по отношению к количеству  материалов, размещение которых установлено нормативными правовыми актами",94,{"$f":"INDEX(Индикаторы!H50:H51,MATCH('Количественные результаты'!F22,Индикаторы!F50:F51,0))","v":100},"Объем информации (количество материалов/единиц информации), размещенной  на официальном сайте организации по отношению к количеству  материалов, размещение которых установлено нормативными правовыми актами",90,{"$f":"INDEX(Индикаторы!K50:K51,MATCH('Количественные результаты'!I22,Индикаторы!I50:I51,0))","v":100},"Количество  функционирующих дистанционных способов взаимодействия (от одного до трех способов включительно)",3,{"$f":"INDEX(Индикаторы!N50:N52,MATCH('Количественные результаты'!L22,Индикаторы!L50:L52,0))","v":30},"Число получателей услуг, удовлетворенных качеством, полнотой и доступностью информации о деятельности организации социальной сферы, размещенной на информационных стендах в помещении организации социальной сферы по отношению к числу опрошенных  получателей услуг, ответивших на соответствующий вопрос анкеты",94,100,"число получателей услуг, удовлетворенных качеством, полнотой и доступностью информации о деятельности организации социальной сферы, размещенной на официальном сайте организации социальной сферы по отношению к  числу опрошенных  получателей услуг, ответивших на соответствующий вопрос анкеты",92,100,"Количество комфортных условий для предоставления услуг (от одного до четырех включительно)",3,{"$f":"INDEX(Индикаторы!W50:W52,MATCH('Количественные результаты'!U22,Индикаторы!U50:U52,0))","v":20},"Число получателей услуг, удовлетворенных комфортностью предоставления услуг организацией социальной сферы, по отношению к  числу опрошенных  получателей услуг, ответивших на данный вопрос",100,100,"Количество условий доступности организации для инвалидов (от одного до четырех)",3,{"$f":"INDEX(Индикаторы!AC50:AC52,MATCH('Количественные результаты'!AA22,Индикаторы!AA50:AA52,0))","v":20},"Количество условий доступности, позволяющих инвалидам получать услуги наравне с другими (от одного до четырех)",3,{"$f":"INDEX(Индикаторы!AF50:AF52,MATCH('Количественные результаты'!AD22,Индикаторы!AD50:AD52,0))","v":20},"Число получателей услуг-инвалидов, удовлетворенных доступностью услуг для инвалидов, по отношению к  числу опрошенных  получателей услуг- инвалидов, ответивших на соответствующий вопрос анкеты",0,100,"Число получателей услуг, удовлетворенных доброжелательностью, вежливостью работников организации социальной сферы, обеспечивающих первичный контакт и информирование получателя услуги,  по отношению к числу опрошенныхполучателей услуг, ответивших на соответствующий вопрос  анкеты",100,100,"Число  получателей услуг, удовлетворенных доброжелательностью, вежливостью работников организации социальной сферы, обеспечивающих непосредственное оказание услуги, по отношению к числу опрошенных получателей услуг, ответивших на соответствующий вопрос анкеты",100,100,"Число получателей услуг, удовлетворенных доброжелательностью, вежливостью работников организации социальной сферы при использовании дистанционных форм взаимодействия, по отношению к числу опрошенных получателей услуг, ответивших на соответствующий вопрос анкеты",100,100,"Число получателей услуг, которые готовы рекомендовать организацию родственникам и знакомым (могли бы ее рекомендовать, если бы была возможность выбора организации, по отношению к числу опрошенных получателей услуг, ответивших на соответствующий вопрос анкеты",100,100,"Число получателей услуг, удовлетворенных организационными условиями предоставления услуг, по отношению к числу опрошенных получателей услуг  ответивших на соответствующий вопрос анкеты",100,100,"Число  получателей услуг, удовлетворенных в целом условиями оказания услуг в организации социальной сферы, по отношению к\nчислу опрошенных  получателей услуг, ответивших на соответствующий вопрос анкеты",100,100]
[16,"МУНИЦИПАЛЬНОЕ БЮДЖЕТНОЕ ДОШКОЛЬНОЕ ОБРАЗОВАТЕЛЬНОЕ УЧРЕЖДЕНИЕ \"ШЕЛАНГОВСКИЙ ДЕТСКИЙ САД\" ВЕРХНЕУСЛОНСКОГО МУНИЦИПАЛЬНОГО РАЙОНА РЕСПУБЛИКИ ТАТАРСТАН, 1615003826","26","24","92.3","объем информации (количество материалов/единиц информации), размещенной  на информационных стендах в помещении организации по отношению к количеству  материалов, размещение которых установлено нормативными правовыми актами",89,{"$f":"INDEX(Индикаторы!H53:H54,MATCH('Количественные результаты'!F23,Индикаторы!F53:F54,0))","v":100},"Объем информации (количество материалов/единиц информации), размещенной  на официальном сайте организации по отношению к количеству  материалов, размещение которых установлено нормативными правовыми актами",92,{"$f":"INDEX(Индикаторы!K53:K54,MATCH('Количественные результаты'!I23,Индикаторы!I53:I54,0))","v":100},"Количество  функционирующих дистанционных способов взаимодействия (от одного до трех способов включительно)",3,{"$f":"INDEX(Индикаторы!N53:N55,MATCH('Количественные результаты'!L23,Индикаторы!L53:L55,0))","v":30},"Число получателей услуг, удовлетворенных качеством, полнотой и доступностью информации о деятельности организации социальной сферы, размещенной на информационных стендах в помещении организации социальной сферы по отношению к числу опрошенных  получателей услуг, ответивших на соответствующий вопрос анкеты",89,100,"число получателей услуг, удовлетворенных качеством, полнотой и доступностью информации о деятельности организации социальной сферы, размещенной на официальном сайте организации социальной сферы по отношению к  числу опрошенных  получателей услуг, ответивших на соответствующий вопрос анкеты",87,100,"Количество комфортных условий для предоставления услуг (от одного до четырех включительно)",3,{"$f":"INDEX(Индикаторы!W53:W55,MATCH('Количественные результаты'!U23,Индикаторы!U53:U55,0))","v":20},"Число получателей услуг, удовлетворенных комфортностью предоставления услуг организацией социальной сферы, по отношению к  числу опрошенных  получателей услуг, ответивших на данный вопрос",85,100,"Количество условий доступности организации для инвалидов (от одного до четырех)",3,{"$f":"INDEX(Индикаторы!AC53:AC55,MATCH('Количественные результаты'!AA23,Индикаторы!AA53:AA55,0))","v":20},"Количество условий доступности, позволяющих инвалидам получать услуги наравне с другими (от одного до четырех)",3,{"$f":"INDEX(Индикаторы!AF53:AF55,MATCH('Количественные результаты'!AD23,Индикаторы!AD53:AD55,0))","v":20},"Число получателей услуг-инвалидов, удовлетворенных доступностью услуг для инвалидов, по отношению к  числу опрошенных  получателей услуг- инвалидов, ответивших на соответствующий вопрос анкеты",0,100,"Число получателей услуг, удовлетворенных доброжелательностью, вежливостью работников организации социальной сферы, обеспечивающих первичный контакт и информирование получателя услуги,  по отношению к числу опрошенныхполучателей услуг, ответивших на соответствующий вопрос  анкеты",95,100,"Число  получателей услуг, удовлетворенных доброжелательностью, вежливостью работников организации социальной сферы, обеспечивающих непосредственное оказание услуги, по отношению к числу опрошенных получателей услуг, ответивших на соответствующий вопрос анкеты",95,100,"Число получателей услуг, удовлетворенных доброжелательностью, вежливостью работников организации социальной сферы при использовании дистанционных форм взаимодействия, по отношению к числу опрошенных получателей услуг, ответивших на соответствующий вопрос анкеты",94,100,"Число получателей услуг, которые готовы рекомендовать организацию родственникам и знакомым (могли бы ее рекомендовать, если бы была возможность выбора организации, по отношению к числу опрошенных получателей услуг, ответивших на соответствующий вопрос анкеты",91,100,"Число получателей услуг, удовлетворенных организационными условиями предоставления услуг, по отношению к числу опрошенных получателей услуг  ответивших на соответствующий вопрос анкеты",89,100,"Число  получателей услуг, удовлетворенных в целом условиями оказания услуг в организации социальной сферы, по отношению к\nчислу опрошенных  получателей услуг, ответивших на соответствующий вопрос анкеты",87,100]
[17,"МУНИЦИПАЛЬНОЕ БЮДЖЕТНОЕ ДОШКОЛЬНОЕ ОБРАЗОВАТЕЛЬНОЕ УЧРЕЖДЕНИЕ \"ЯМБУЛАТОВСКИЙ ДЕТСКИЙ САД\" ВЕРХНЕУСЛОНСКОГО МУНИЦИПАЛЬНОГО РАЙОНА РЕСПУБЛИКИ ТАТАРСТАН, 1656067716","9","9","100.0","объем информации (количество материалов/единиц информации), размещенной  на информационных стендах в помещении организации по отношению к количеству  материалов, размещение которых установлено нормативными правовыми актами",84,{"$f":"INDEX(Индикаторы!H56:H57,MATCH('Количественные результаты'!F24,Индикаторы!F56:F57,0))","v":100},"Объем информации (количество материалов/единиц информации), размещенной  на официальном сайте организации по отношению к количеству  материалов, размещение которых установлено нормативными правовыми актами",89,{"$f":"INDEX(Индикаторы!K56:K57,MATCH('Количественные результаты'!I24,Индикаторы!I56:I57,0))","v":100},"Количество  функционирующих дистанционных способов взаимодействия (от одного до трех способов включительно)",3,{"$f":"INDEX(Индикаторы!N56:N58,MATCH('Количественные результаты'!L24,Индикаторы!L56:L58,0))","v":30},"Число получателей услуг, удовлетворенных качеством, полнотой и доступностью информации о деятельности организации социальной сферы, размещенной на информационных стендах в помещении организации социальной сферы по отношению к числу опрошенных  получателей услуг, ответивших на соответствующий вопрос анкеты",100,100,"число получателей услуг, удовлетворенных качеством, полнотой и доступностью информации о деятельности организации социальной сферы, размещенной на официальном сайте организации социальной сферы по отношению к  числу опрошенных  получателей услуг, ответивших на соответствующий вопрос анкеты",100,100,"Количество комфортных условий для предоставления услуг (от одного до четырех включительно)",3,{"$f":"INDEX(Индикаторы!W56:W58,MATCH('Количественные результаты'!U24,Индикаторы!U56:U58,0))","v":20},"Число получателей услуг, удовлетворенных комфортностью предоставления услуг организацией социальной сферы, по отношению к  числу опрошенных  получателей услуг, ответивших на данный вопрос",100,100,"Количество условий доступности организации для инвалидов (от одного до четырех)",3,{"$f":"INDEX(Индикаторы!AC56:AC58,MATCH('Количественные результаты'!AA24,Индикаторы!AA56:AA58,0))","v":20},"Количество условий доступности, позволяющих инвалидам получать услуги наравне с другими (от одного до четырех)",3,{"$f":"INDEX(Индикаторы!AF56:AF58,MATCH('Количественные результаты'!AD24,Индикаторы!AD56:AD58,0))","v":20},"Число получателей услуг-инвалидов, удовлетворенных доступностью услуг для инвалидов, по отношению к  числу опрошенных  получателей услуг- инвалидов, ответивших на соответствующий вопрос анкеты",0,100,"Число получателей услуг, удовлетворенных доброжелательностью, вежливостью работников организации социальной сферы, обеспечивающих первичный контакт и информирование получателя услуги,  по отношению к числу опрошенныхполучателей услуг, ответивших на соответствующий вопрос  анкеты",100,100,"Число  получателей услуг, удовлетворенных доброжелательностью, вежливостью работников организации социальной сферы, обеспечивающих непосредственное оказание услуги, по отношению к числу опрошенных получателей услуг, ответивших на соответствующий вопрос анкеты",100,100,"Число получателей услуг, удовлетворенных доброжелательностью, вежливостью работников организации социальной сферы при использовании дистанционных форм взаимодействия, по отношению к числу опрошенных получателей услуг, ответивших на соответствующий вопрос анкеты",100,100,"Число получателей услуг, которые готовы рекомендовать организацию родственникам и знакомым (могли бы ее рекомендовать, если бы была возможность выбора организации, по отношению к числу опрошенных получателей услуг, ответивших на соответствующий вопрос анкеты",100,100,"Число получателей услуг, удовлетворенных организационными условиями предоставления услуг, по отношению к числу опрошенных получателей услуг  ответивших на соответствующий вопрос анкеты",100,100,"Число  получателей услуг, удовлетворенных в целом условиями оказания услуг в организации социальной сферы, по отношению к\nчислу опрошенных  получателей услуг, ответивших на соответствующий вопрос анкеты",95,100]
[18,"МУНИЦИПАЛЬНОЕ БЮДЖЕТНОЕ ДОШКОЛЬНОЕ ОБРАЗОВАТЕЛЬНОЕ УЧРЕЖДЕНИЕ \"ОКТЯБРЬСКИЙ ДЕТСКИЙ САД\" ВЕРХНЕУСЛОНСКОГО МУНИЦИПАЛЬНОГО РАЙОНА РЕСПУБЛИКИ ТАТАРСТАН, 1615004121","14","14","100.0","объем информации (количество материалов/единиц информации), размещенной  на информационных стендах в помещении организации по отношению к количеству  материалов, размещение которых установлено нормативными правовыми актами",88,{"$f":"INDEX(Индикаторы!H59:H60,MATCH('Количественные результаты'!F25,Индикаторы!F59:F60,0))","v":100},"Объем информации (количество материалов/единиц информации), размещенной  на официальном сайте организации по отношению к количеству  материалов, размещение которых установлено нормативными правовыми актами",89,{"$f":"INDEX(Индикаторы!K59:K60,MATCH('Количественные результаты'!I25,Индикаторы!I59:I60,0))","v":100},"Количество  функционирующих дистанционных способов взаимодействия (от одного до трех способов включительно)",3,{"$f":"INDEX(Индикаторы!N59:N61,MATCH('Количественные результаты'!L25,Индикаторы!L59:L61,0))","v":30},"Число получателей услуг, удовлетворенных качеством, полнотой и доступностью информации о деятельности организации социальной сферы, размещенной на информационных стендах в помещении организации социальной сферы по отношению к числу опрошенных  получателей услуг, ответивших на соответствующий вопрос анкеты",87,100,"число получателей услуг, удовлетворенных качеством, полнотой и доступностью информации о деятельности организации социальной сферы, размещенной на официальном сайте организации социальной сферы по отношению к  числу опрошенных  получателей услуг, ответивших на соответствующий вопрос анкеты",85,100,"Количество комфортных условий для предоставления услуг (от одного до четырех включительно)",3,{"$f":"INDEX(Индикаторы!W59:W61,MATCH('Количественные результаты'!U25,Индикаторы!U59:U61,0))","v":20},"Число получателей услуг, удовлетворенных комфортностью предоставления услуг организацией социальной сферы, по отношению к  числу опрошенных  получателей услуг, ответивших на данный вопрос",85,100,"Количество условий доступности организации для инвалидов (от одного до четырех)",3,{"$f":"INDEX(Индикаторы!AC59:AC61,MATCH('Количественные результаты'!AA25,Индикаторы!AA59:AA61,0))","v":20},"Количество условий доступности, позволяющих инвалидам получать услуги наравне с другими (от одного до четырех)",3,{"$f":"INDEX(Индикаторы!AF59:AF61,MATCH('Количественные результаты'!AD25,Индикаторы!AD59:AD61,0))","v":20},"Число получателей услуг-инвалидов, удовлетворенных доступностью услуг для инвалидов, по отношению к  числу опрошенных  получателей услуг- инвалидов, ответивших на соответствующий вопрос анкеты",0,100,"Число получателей услуг, удовлетворенных доброжелательностью, вежливостью работников организации социальной сферы, обеспечивающих первичный контакт и информирование получателя услуги,  по отношению к числу опрошенныхполучателей услуг, ответивших на соответствующий вопрос  анкеты",82,100,"Число  получателей услуг, удовлетворенных доброжелательностью, вежливостью работников организации социальной сферы, обеспечивающих непосредственное оказание услуги, по отношению к числу опрошенных получателей услуг, ответивших на соответствующий вопрос анкеты",84,100,"Число получателей услуг, удовлетворенных доброжелательностью, вежливостью работников организации социальной сферы при использовании дистанционных форм взаимодействия, по отношению к числу опрошенных получателей услуг, ответивших на соответствующий вопрос анкеты",84,100,"Число получателей услуг, которые готовы рекомендовать организацию родственникам и знакомым (могли бы ее рекомендовать, если бы была возможность выбора организации, по отношению к числу опрошенных получателей услуг, ответивших на соответствующий вопрос анкеты",81,100,"Число получателей услуг, удовлетворенных организационными условиями предоставления услуг, по отношению к числу опрошенных получателей услуг  ответивших на соответствующий вопрос анкеты",82,100,"Число  получателей услуг, удовлетворенных в целом условиями оказания услуг в организации социальной сферы, по отношению к\nчислу опрошенных  получателей услуг, ответивших на соответствующий вопрос анкеты",81,100]

{"sheet":"Индикаторы","index":2,"n_rows":61,"n_cols":53,"rows_kept":61,"hidden":true,"merged":[[1,0,6,0],[1,1,6,1],[1,2,6,2],[1,3,6,3],[1,4,6,4],[1,5,1,52],[2,5,2,19],[2,20,2,25],[2,26,2,34],[2,35,2,43],[2,44,2,52],[3,5,3,19],[3,20,3,25],[3,26,3,34],[3,35,3,43],[3,44,3,52],[4,5,4,10],[4,11,4,13],[4,14,4,19],[4,20,4,22],[4,23,4,25],[4,26,4,28],[4,29,4,31],[4,32,4,34],[4,35,4,37],[4,38,4,40],[4,41,4,43],[4,44,4,46],[4,47,4,49],[4,50,4,52],[5,5,5,7],[5,8,5,10],[5,11,5,13],[5,14,5,16],[5,17,5,19],[5,20,5,22],[5,23,5,25],[5,26,5,28],[5,29,5,31],[5,32,5,34],[5,35,5,37],[5,38,5,40],[5,41,5,43],[5,44,5,46],[5,47,5,49],[5,50,5,52],[6,6,6,7],[6,9,6,10],[6,12,6,13],[6,15,6,16],[6,18,6,19],[6,21,6,22],[6,24,6,25],[6,27,6,28],[6,30,6,31],[6,33,6,34],[6,36,6,37],[6,39,6,40],[6,42,6,43],[6,45,6,46],[6,48,6,49],[6,51,6,52]]}
[]
["№\nп.п.","Организация","Численность\nполучателей\nуслуг\nорганизации","Количество\nреспондентов","Доля\nреспондентов","Общие критерии оценки"]
[{"$nulls":5},"1 - критерий открытости и доступности информации об организации",{"$nulls":14},"2 - критерий комфортности условий предоставления услуги, в том числе время ожидания ее предоставления",{"$nulls":5},"3 - критерий доступности услуг для инвалидов",{"$nulls":8},"4 - критерий доброжелательности, вежливости работников организации",{"$nulls":8},"5 - критерий удовлетворенности условиями оказания услуг"]
[{"$nulls":5},"Показатели",{"$nulls":14},"Показатели",{"$nulls":5},"Показатели",{"$nulls":8},"Показатели",{"$nulls":8},"Показатели"]
[{"$nulls":5},"1.1 Соответствие информации о деятельности организации социальной сферы, размещенной на общедоступных информационных ресурсах, ее содержанию и порядку (форме), установленным законодательными и иными нормативными правовыми актами Российской Федерации",{"$nulls":5},"1.2 Наличие на официальном сайте организации социальной сферы информации о дистанционных способах обратной связи и взаимодействия с получателями услуг и их функционирование",null,null,"1.3 Доля получателей услуг, удовлетворенных открытостью, полнотой и доступностью информации о деятельности организации социальной сферы",{"$nulls":5},"2.1 Обеспечение в организации социальной сферы комфортных условий предоставления услуг",null,null,"2.3 Доля получателей услуг удовлетворенных комфортностью предоставления услуг организацией социальной сферы",null,null,"3.1 Оборудование помещений организации социальной сферы и прилегающей к ней территории с учетом доступности для инвалидов",null,null,"3.2 Обеспечение в организации социальной сферы условий доступности, позволяющих инвалидам получать услуги наравне с другими",null,null,"3.3 Доля получателей услуг, удовлетворенных доступностью услуг для инвалидов",null,null,"4.1 Доля получателей услуг, удовлетворенных доброжелательностью, вежливостью работников организации социальной сферы, обеспечивающих первичный контакт и информирование получателя услуги при непосредственном обращении в организацию социальной сферы",null,null,"4.2 Доля получателей услуг, удовлетворенных доброжелательностью, вежливостью работников организации социальной сферы, обеспечивающих непосредственное оказание услуги при обращении в организацию социальной сферы",null,null,"4.3 Доля получателей услуг, удовлетворенных доброжелательностью, вежливостью работников организации социальной сферы при использовании дистанционных форм взаимодействия",null,null,"5.1 Доля получателей услуг, которые готовы рекомендовать организацию социальной сферы родственникам и знакомым (могли бы ее рекомендовать, если бы была возможность выбора организации социальной сферы)",null,null,"5.2 Доля получателей услуг, удовлетворенных организационными условиями предоставления услуг",null,null,"5.3 Доля получателей услуг, удовлетворенных в целом условиями оказания услуг в организации социальной сферы"]
[{"$nulls":5},"1.1.1 - Соответствие информации о деятельности организации социальной сферы, размещенной на информационных стендах в помещении организации социальной сферы, ее содержанию и порядку (форме), установленным нормативными правовыми актами.",null,null,"1.1.2 - Соответствие информации о деятельности организации социальной сферы, размещенной на официальном сайте организации социальной сферы, ее содержанию и порядку (форме), установленным нормативными правовыми актами.",null,null,"1.2.1 - Наличие и функционирование на официальном сайте организации информации о дистанционных способах взаимодействия с получателями услуг: телефона; электронной почты; электронных сервисов (форма для подачи электронного обращения (жалобы, предложения), получение консультации по оказываемым услугам и пр.); раздела «Часто задаваемые вопросы»; технической возможности выражения получателем услуг мнения о качестве условий оказания услуг организацией социальной сферы (наличие анкеты для опроса граждан или гиперссылки на нее); иного дистанционного способа взаимодействия.",null,null,"1.3.1 - Удовлетворенность качеством, полнотой и доступностью информации о деятельности организации социальной сферы, размещенной на информационных стендах в помещении организации социальной сферы.",null,null,"1.3.2 - Удовлетворенность качеством, полнотой и доступностью информации о деятельности организации социальной сферы, размещенной на официальном сайте организации социальной сферы в сети «Интернет».",null,null,"2.1.1 - Наличие комфортных условий для предоставления услуг, например: наличие комфортной зоны отдыха (ожидания), оборудованной соответствующей мебелью; наличие и понятность навигации внутри организации социальной сферы; наличие и доступность питьевой воды; наличие и доступность санитарно-гигиенических помещений; санитарное состояние помещений организации социальной сферы; транспортная доступность (возможность доехать до организации социальной сферы на общественном транспорте, наличие парковки); доступность записи на получение услуги (по телефону, на официальном сайте организации социальной сферы в сети Интернет, посредством Единого портала государственных и муниципальных услуг, при личном посещении в регистратуре или у специалиста организации социальной сферы и пр.); иные параметры комфортных условий, установленные ведомственным актом уполномоченного федерального органа исполнительной власти.",null,null,"2.3.1 - Удовлетворенность комфортностью предоставления услуг организацией социальной сферы.",null,null,"3.1.1 - Наличие в помещениях организации социальной сферы и на прилегающей к ней территории: оборудованных входных групп пандусами (подъемными платформами); выделенных стоянок для автотранспортных средств инвалидов; адаптированных лифтов, поручней, расширенных дверных проемов; сменных кресел-колясок; специально оборудованных санитарно-гигиенических помещений в организации социальной сферы.",null,null,"3.2.1 - Наличие в организации социальной сферы условий доступности, позволяющих инвалидам получать услуги наравне с другими: дублирование для инвалидов по слуху и зрению звуковой и зрительной информации; дублирование надписей, знаков и иной текстовой и графической информации знаками, выполненными рельефно-точечным шрифтом Брайля; возможность предоставления инвалидам по слуху (слуху и зрению) услуг сурдопереводчика (тифлосурдопереводчика); наличие альтернативной версии официального сайта организации социальной сферы в сети Интернет для инвалидов по зрению; помощь, оказываемая работниками организации социальной сферы, прошедшими необходимое обучение (инструктирование) по сопровождению инвалидов в помещениях организации социальной сферы и на прилегающей территории; наличие возможности предоставления услуги в дистанционном режиме или на дому.",null,null,"3.3.1 - Удовлетворенность доступностью услуг для инвалидов.",null,null,"4.1.1 - Удовлетворенность доброжелательностью, вежливостью работников организации социальной сферы, обеспечивающих первичный контакт и информирование получателя услуги (работники справочной, приемного отделения, регистратуры, кассы и прочие работники) при непосредственном обращении в организацию социальной сферы.",null,null,"4.2.1 - Удовлетворенность доброжелательностью, вежливостью работников организации социальной сферы, обеспечивающих непосредственное оказание услуги (врачи, социальные работники, работники, осуществляющие экспертно-реабилитационную диагностику, преподаватели, тренеры, инструкторы, библиотекари, экскурсоводы и прочие работники) при обращении в организацию социальной сферы.",null,null,"4.3.1 - Удовлетворенность доброжелательностью, вежливостью работников организации социальной сферы при использовании дистанционных форм взаимодействия (по телефону, по электронной почте, с помощью электронных сервисов (подачи электронного обращения (жалобы, предложения), получения консультации по оказываемым услугам и пр.).",null,null,"5.1.1 - Готовность получателей услуг рекомендовать организацию социальной сферы родственникам и знакомым.",null,null,"5.2.1 - Удовлетворенность получателей услуг организационными условиями оказания услуг, например: наличием и понятностью навигации внутри организации социальной сферы; графиком работы организации социальной сферы (подразделения, отдельных специалистов, графиком прихода социального работника на дом и пр.).",null,null,"5.3.1 - Удовлетворенность получателей услуг в целом условиями оказания услуг в организации социальной сферы."]
[{"$nulls":5},"Наименование индикатора","Выполнение индикатора",null,"Наименование индикатора","Выполнение индикатора",null,"Наименование индикатора","Выполнение индикатора",null,"Наименование индикатора","Выполнение индикатора",null,"Наименование индикатора","Выполнение индикатора",null,"Наименование индикатора","Выполнение индикатора",null,"Наименование индикатора","Выполнение индикатора",null,"Наименование индикатора","Выполнение индикатора",null,"Наименование индикатора","Выполнение индикатора",null,"Наименование индикатора","Выполнение индикатора",null,"Наименование индикатора","Выполнение индикатора",null,"Наименование индикатора","Выполнение индикатора",null,"Наименование индикатора","Выполнение индикатора",null,"Наименование индикатора","Выполнение индикатора",null,"Наименование индикатора","Выполнение индикатора",null,"Наименование индикатора","Выполнение индикатора"]
[3,"МУНИЦИПАЛЬНОЕ БЮДЖЕТНОЕ ОБЩЕОБРАЗОВАТЕЛЬНОЕ УЧРЕЖДЕНИЕ \"НИЖНЕУСЛОНСКАЯ ОСНОВНАЯ ОБЩЕОБРАЗОВАТЕЛЬНАЯ ШКОЛА ВЕРХНЕУСЛОНСКОГО МУНИЦИПАЛЬНОГО РАЙОНА РЕСПУБЛИКИ ТАТАРСТАН\", 1615004280","31","29","93.5","отсутствует информация о деятельности организации социальной сферы","",0,"Отсутствует информация о деятельности организации социальной сферы на ее официальном сайте","",0,"Отсутствуют или не функционируют дистанционные способы взаимодействия","",0,"Число получателей услуг, удовлетворенных качеством, полнотой и доступностью информации о деятельности организации социальной сферы, размещенной на информационных стендах в помещении организации социальной сферы по отношению к числу опрошенных  получателей услуг, ответивших на соответствующий вопрос анкеты",83,100,"число получателей услуг, удовлетворенных качеством, полнотой и доступностью информации о деятельности организации социальной сферы, размещенной на официальном сайте организации социальной сферы по отношению к  числу опрошенных  получателей услуг, ответивших на соответствующий вопрос анкеты",85,100,"Отсутствуют комфортные условия","",0,"Число получателей услуг, удовлетворенных комфортностью предоставления услуг организацией социальной сферы, по отношению к  числу опрошенных  получателей услуг, ответивших на данный вопрос",66,100,"Отсутствуют условия доступности для инвалидов","",0,"Отсутствуют условия доступности, позволяющие инвалидам получать услуги наравне с другими","",0,"Число получателей услуг-инвалидов, удовлетворенных доступностью услуг для инвалидов, по отношению к  числу опрошенных  получателей услуг- инвалидов, ответивших на соответствующий вопрос анкеты",50,100,"Число получателей услуг, удовлетворенных доброжелательностью, вежливостью работников организации социальной сферы, обеспечивающих первичный контакт и информирование получателя услуги,  по отношению к числу опрошенныхполучателей услуг, ответивших на соответствующий вопрос  анкеты",76,100,"Число  получателей услуг, удовлетворенных доброжелательностью, вежливостью работников организации социальной сферы, обеспечивающих непосредственное оказание услуги, по отношению к числу опрошенных получателей услуг, ответивших на соответствующий вопрос анкеты",77,100,"Число получателей услуг, удовлетворенных доброжелательностью, вежливостью работников организации социальной сферы при использовании дистанционных форм взаимодействия, по отношению к числу опрошенных получателей услуг, ответивших на соответствующий вопрос анкеты",86,100,"Число получателей услуг, которые готовы рекомендовать организацию родственникам и знакомым (могли бы ее рекомендовать, если бы была возможность выбора организации, по отношению к числу опрошенных получателей услуг, ответивших на соответствующий вопрос анкеты",76,100,"Число получателей услуг, удовлетворенных организационными условиями предоставления услуг, по отношению к числу опрошенных получателей услуг  ответивших на соответствующий вопрос анкеты",66,100,"Число  получателей услуг, удовлетворенных в целом условиями оказания услуг в организации социальной сферы, по отношению к\nчислу опрошенных  получателей услуг, ответивших на соответствующий вопрос анкеты",66,100]
[3,"МУНИЦИПАЛЬНОЕ БЮДЖЕТНОЕ ОБЩЕОБРАЗОВАТЕЛЬНОЕ УЧРЕЖДЕНИЕ \"НИЖНЕУСЛОНСКАЯ ОСНОВНАЯ ОБЩЕОБРАЗОВАТЕЛЬНАЯ ШКОЛА ВЕРХНЕУСЛОНСКОГО МУНИЦИПАЛЬНОГО РАЙОНА РЕСПУБЛИКИ ТАТАРСТАН\", 1615004280","31","29","93.5","объем информации (количество материалов/единиц информации), размещенной  на информационных стендах в помещении организации по отношению к количеству  материалов, размещение которых установлено нормативными правовыми актами",79,100,"Объем информации (количество материалов/единиц информации), размещенной  на официальном сайте организации по отношению к количеству  материалов, размещение которых установлено нормативными правовыми актами",77,100,"Количество  функционирующих дистанционных способов взаимодействия (от одного до трех способов включительно)",null,30,{"$nulls":6},"Количество комфортных условий для предоставления услуг (от одного до четырех включительно)",3,20,{"$nulls":3},"Количество условий доступности организации для инвалидов (от одного до четырех)",null,20,"Количество условий доступности, позволяющих инвалидам получать услуги наравне с другими (от одного до четырех)",null,20]
[3,"МУНИЦИПАЛЬНОЕ БЮДЖЕТНОЕ ОБЩЕОБРАЗОВАТЕЛЬНОЕ УЧРЕЖДЕНИЕ \"НИЖНЕУСЛОНСКАЯ ОСНОВНАЯ ОБЩЕОБРАЗОВАТЕЛЬНАЯ ШКОЛА ВЕРХНЕУСЛОНСКОГО МУНИЦИПАЛЬНОГО РАЙОНА РЕСПУБЛИКИ ТАТАРСТАН\", 1615004280","31","29","93.5",{"$nulls":6},"В наличии и функционируют более трех  дистанционных способов взаимодействия","",100,{"$nulls":6},"Наличие пяти  и более комфортных условий для предоставления услуг","",100,{"$nulls":3},"Наличие пяти и более условий доступности для инвалидов","",100,"Наличие пяти и более условий  доступности","",100]
[4,"МУНИЦИПАЛЬНОЕ БЮДЖЕТНОЕ ОБЩЕОБРАЗОВАТЕЛЬНОЕ УЧРЕЖДЕНИЕ \"ВВЕДЕНСКО-СЛОБОДСКАЯ ОСНОВНАЯ ОБЩЕОБРАЗОВАТЕЛЬНАЯ ШКОЛА\" ВЕРХНЕУСЛОНСКОГО МУНИЦИПАЛЬНОГО РАЙОНА РЕСПУБЛИКИ ТАТАРСТАН, 1615003713","23","19","82.6","отсутствует информация о деятельности организации социальной сферы","",0,"Отсутствует информация о деятельности организации социальной сферы на ее официальном сайте","",0,"Отсутствуют или не функционируют дистанционные способы взаимодействия","",0,"Число получателей услуг, удовлетворенных качеством, полнотой и доступностью информации о деятельности организации социальной сферы, размещенной на информационных стендах в помещении организации социальной сферы по отношению к числу опрошенных  получателей услуг, ответивших на соответствующий вопрос анкеты",76,100,"число получателей услуг, удовлетворенных качеством, полнотой и доступностью информации о деятельности организации социальной сферы, размещенной на официальном сайте организации социальной сферы по отношению к  числу опрошенных  получателей услуг, ответивших на соответствующий вопрос анкеты",82,100,"Отсутствуют комфортные условия","",0,"Число получателей услуг, удовлетворенных комфортностью предоставления услуг организацией социальной сферы, по отношению к  числу опрошенных  получателей услуг, ответивших на данный вопрос",89,100,"Отсутствуют условия доступности для инвалидов","",0,"Отсутствуют условия доступности, позволяющие инвалидам получать услуги наравне с другими","",0,"Число получателей услуг-инвалидов, удовлетворенных доступностью услуг для инвалидов, по отношению к  числу опрошенных  получателей услуг- инвалидов, ответивших на соответствующий вопрос анкеты",0,100,"Число получателей услуг, удовлетворенных доброжелательностью, вежливостью работников организации социальной сферы, обеспечивающих первичный контакт и информирование получателя услуги,  по отношению к числу опрошенныхполучателей услуг, ответивших на соответствующий вопрос  анкеты",97,100,"Число  получателей услуг, удовлетворенных доброжелательностью, вежливостью работников организации социальной сферы, обеспечивающих непосредственное оказание услуги, по отношению к числу опрошенных получателей услуг, ответивших на соответствующий вопрос анкеты",87,100,"Число получателей услуг, удовлетворенных доброжелательностью, вежливостью работников организации социальной сферы при использовании дистанционных форм взаимодействия, по отношению к числу опрошенных получателей услуг, ответивших на соответствующий вопрос анкеты",96,100,"Число получателей услуг, которые готовы рекомендовать организацию родственникам и знакомым (могли бы ее рекомендовать, если бы была возможность выбора организации, по отношению к числу опрошенных получателей услуг, ответивших на соответствующий вопрос анкеты",76,100,"Число получателей услуг, удовлетворенных организационными условиями предоставления услуг, по отношению к числу опрошенных получателей услуг  ответивших на соответствующий вопрос анкеты",89,100,"Число  получателей услуг, удовлетворенных в целом условиями оказания услуг в организации социальной сферы, по отношению к\nчислу опрошенных  получателей услуг, ответивших на соответствующий вопрос анкеты",89,100]
[4,"МУНИЦИПАЛЬНОЕ БЮДЖЕТНОЕ ОБЩЕОБРАЗОВАТЕЛЬНОЕ УЧРЕЖДЕНИЕ \"ВВЕДЕНСКО-СЛОБОДСКАЯ ОСНОВНАЯ ОБЩЕОБРАЗОВАТЕЛЬНАЯ ШКОЛА\" ВЕРХНЕУСЛОНСКОГО МУНИЦИПАЛЬНОГО РАЙОНА РЕСПУБЛИКИ ТАТАРСТАН, 1615003713","23","19","82.6","объем информации (количество материалов/единиц информации), размещенной  на информационных стендах в помещении организации по отношению к количеству  материалов, размещение которых установлено нормативными правовыми актами",89,100,"Объем информации (количество материалов/единиц информации), размещенной  на официальном сайте организации по отношению к количеству  материалов, размещение которых установлено нормативными правовыми актами",90,100,"Количество  функционирующих дистанционных способов взаимодействия (от одного до трех способов включительно)",null,30,{"$nulls":6},"Количество комфортных условий для предоставления услуг (от одного до четырех включительно)",null,20,{"$nulls":3},"Количество условий доступности организации для инвалидов (от одного до четырех)",3,20,"Количество условий доступности, позволяющих инвалидам получать услуги наравне с другими (от одного до четырех)",3,20]
[4,"МУНИЦИПАЛЬНОЕ БЮДЖЕТНОЕ ОБЩЕОБРАЗОВАТЕЛЬНОЕ УЧРЕЖДЕНИЕ \"ВВЕДЕНСКО-СЛОБОДСКАЯ ОСНОВНАЯ ОБЩЕОБРАЗОВАТЕЛЬНАЯ ШКОЛА\" ВЕРХНЕУСЛОНСКОГО МУНИЦИПАЛЬНОГО РАЙОНА РЕСПУБЛИКИ ТАТАРСТАН, 1615003713","23","19","82.6",{"$nulls":6},"В наличии и функционируют более трех  дистанционных способов взаимодействия","",100,{"$nulls":6},"Наличие пяти  и более комфортных условий для предоставления услуг","",100,{"$nulls":3},"Наличие пяти и более условий доступности для инвалидов","",100,"Наличие пяти и более условий  доступности","",100]
[5,"МУНИЦИПАЛЬНОЕ БЮДЖЕТНОЕ  ОБЩЕОБРАЗОВАТЕЛЬНОЕ УЧРЕЖДЕНИЕ \"ПЕЧИЩИНСКАЯ ОСНОВНАЯ ОБЩЕОБРАЗОВАТЕЛЬНАЯ ШКОЛА\" ВЕРХНЕУСЛОНСКОГО МУНИЦИПАЛЬНОГО РАЙОНА РЕСПУБЛИКИ ТАТАРСТАН, 1615003706","32","29","90.6","отсутствует информация о деятельности организации социальной сферы","",0,"Отсутствует информация о деятельности организации социальной сферы на ее официальном сайте","",0,"Отсутствуют или не функционируют дистанционные способы взаимодействия","",0,"Число получателей услуг, удовлетворенных качеством, полнотой и доступностью информации о деятельности организации социальной сферы, размещенной на информационных стендах в помещении организации социальной сферы по отношению к числу опрошенных  получателей услуг, ответивших на соответствующий вопрос анкеты",88,100,"число получателей услуг, удовлетворенных качеством, полнотой и доступностью информации о деятельности организации социальной сферы, размещенной на официальном сайте организации социальной сферы по отношению к  числу опрошенных  получателей услуг, ответивших на соответствующий вопрос анкеты",86,100,"Отсутствуют комфортные условия","",0,"Число получателей услуг, удовлетворенных комфортностью предоставления услуг организацией социальной сферы, по отношению к  числу опрошенных  получателей услуг, ответивших на данный вопрос",88,100,"Отсутствуют условия доступности для инвалидов","",0,"Отсутствуют условия доступности, позволяющие инвалидам получать услуги наравне с другими","",0,"Число получателей услуг-инвалидов, удовлетворенных доступностью услуг для инвалидов, по отношению к  числу опрошенных  получателей услуг- инвалидов, ответивших на соответствующий вопрос анкеты",0,100,"Число получателей услуг, удовлетворенных доброжелательностью, вежливостью работников организации социальной сферы, обеспечивающих первичный контакт и информирование получателя услуги,  по отношению к числу опрошенныхполучателей услуг, ответивших на соответствующий вопрос  анкеты",92,100,"Число  получателей услуг, удовлетворенных доброжелательностью, вежливостью работников организации социальной сферы, обеспечивающих непосредственное оказание услуги, по отношению к числу опрошенных получателей услуг, ответивших на соответствующий вопрос анкеты",92,100,"Число получателей услуг, удовлетворенных доброжелательностью, вежливостью работников организации социальной сферы при использовании дистанционных форм взаимодействия, по отношению к числу опрошенных получателей услуг, ответивших на соответствующий вопрос анкеты",89,100,"Число получателей услуг, которые готовы рекомендовать организацию родственникам и знакомым (могли бы ее рекомендовать, если бы была возможность выбора организации, по отношению к числу опрошенных получателей услуг, ответивших на соответствующий вопрос анкеты",78,100,"Число получателей услуг, удовлетворенных организационными условиями предоставления услуг, по отношению к числу опрошенных получателей услуг  ответивших на соответствующий вопрос анкеты",85,100,"Число  получателей услуг, удовлетворенных в целом условиями оказания услуг в организации социальной сферы, по отношению к\nчислу опрошенных  получателей услуг, ответивших на соответствующий вопрос анкеты",85,100]
[5,"МУНИЦИПАЛЬНОЕ БЮДЖЕТНОЕ  ОБЩЕОБРАЗОВАТЕЛЬНОЕ УЧРЕЖДЕНИЕ \"ПЕЧИЩИНСКАЯ ОСНОВНАЯ ОБЩЕОБРАЗОВАТЕЛЬНАЯ ШКОЛА\" ВЕРХНЕУСЛОНСКОГО МУНИЦИПАЛЬНОГО РАЙОНА РЕСПУБЛИКИ ТАТАРСТАН, 1615003706","32","29","90.6","объем информации (количество материалов/единиц информации), размещенной  на информационных стендах в помещении организации по отношению к количеству  материалов, размещение которых установлено нормативными правовыми актами",91,100,"Объем информации (количество материалов/единиц информации), размещенной  на официальном сайте организации по отношению к количеству  материалов, размещение которых установлено нормативными правовыми актами",89,100,"Количество  функционирующих дистанционных способов взаимодействия (от одного до трех способов включительно)",3,30,{"$nulls":6},"Количество комфортных условий для предоставления услуг (от одного до четырех включительно)",4,20,{"$nulls":3},"Количество условий доступности организации для инвалидов (от одного до четырех)",null,20,"Количество условий доступности, позволяющих инвалидам получать услуги наравне с другими (от одного до четырех)",null,20]
[5,"МУНИЦИПАЛЬНОЕ БЮДЖЕТНОЕ  ОБЩЕОБРАЗОВАТЕЛЬНОЕ УЧРЕЖДЕНИЕ \"ПЕЧИЩИНСКАЯ ОСНОВНАЯ ОБЩЕОБРАЗОВАТЕЛЬНАЯ ШКОЛА\" ВЕРХНЕУСЛОНСКОГО МУНИЦИПАЛЬНОГО РАЙОНА РЕСПУБЛИКИ ТАТАРСТАН, 1615003706","32","29","90.6",{"$nulls":6},"В наличии и функционируют более трех  дистанционных способов взаимодействия","",100,{"$nulls":6},"Наличие пяти  и более комфортных условий для предоставления услуг","",100,{"$nulls":3},"Наличие пяти и более условий доступности для инвалидов","",100,"Наличие пяти и более условий  доступности","",100]
[6,"МУНИЦИПАЛЬНОЕ БЮДЖЕТНОЕ ДОШКОЛЬНОЕ ОБРАЗОВАТЕЛЬНОЕ УЧРЕЖДЕНИЕ \"МАКУЛОВСКИЙ ДЕТСКИЙ САД\" ВЕРХНЕУСЛОНСКОГО МУНИЦИПАЛЬНОГО РАЙОНА РЕСПУБЛИКИ ТАТАРСТАН, 1615004107","42","40","95.2","отсутствует информация о деятельности организации социальной сферы","",0,"Отсутствует информация о деятельности организации социальной сферы на ее официальном сайте","",0,"Отсутствуют или не функционируют дистанционные способы взаимодействия","",0,"Число получателей услуг, удовлетворенных качеством, полнотой и доступностью информации о деятельности организации социальной сферы, размещенной на информационных стендах в помещении организации социальной сферы по отношению к числу опрошенных  получателей услуг, ответивших на соответствующий вопрос анкеты",88,100,"число получателей услуг, удовлетворенных качеством, полнотой и доступностью информации о деятельности организации социальной сферы, размещенной на официальном сайте организации социальной сферы по отношению к  числу опрошенных  получателей услуг, ответивших на соответствующий вопрос анкеты",85,100,"Отсутствуют комфортные условия","",0,"Число получателей услуг, удовлетворенных комфортностью предоставления услуг организацией социальной сферы, по отношению к  числу опрошенных  получателей услуг, ответивших на данный вопрос",84,100,"Отсутствуют условия доступности для инвалидов","",0,"Отсутствуют условия доступности, позволяющие инвалидам получать услуги наравне с другими","",0,"Число получателей услуг-инвалидов, удовлетворенных доступностью услуг для инвалидов, по отношению к  числу опрошенных  получателей услуг- инвалидов, ответивших на соответствующий вопрос анкеты",0,100,"Число получателей услуг, удовлетворенных доброжелательностью, вежливостью работников организации социальной сферы, обеспечивающих первичный контакт и информирование получателя услуги,  по отношению к числу опрошенныхполучателей услуг, ответивших на соответствующий вопрос  анкеты",85,100,"Число  получателей услуг, удовлетворенных доброжелательностью, вежливостью работников организации социальной сферы, обеспечивающих непосредственное оказание услуги, по отношению к числу опрошенных получателей услуг, ответивших на соответствующий вопрос анкеты",87,100,"Число получателей услуг, удовлетворенных доброжелательностью, вежливостью работников организации социальной сферы при использовании дистанционных форм взаимодействия, по отношению к числу опрошенных получателей услуг, ответивших на соответствующий вопрос анкеты",87,100,"Число получателей услуг, которые готовы рекомендовать организацию родственникам и знакомым (могли бы ее рекомендовать, если бы была возможность выбора организации, по отношению к числу опрошенных получателей услуг, ответивших на соответствующий вопрос анкеты",88,100,"Число получателей услуг, удовлетворенных организационными условиями предоставления услуг, по отношению к числу опрошенных получателей услуг  ответивших на соответствующий вопрос анкеты",88,100,"Число  получателей услуг, удовлетворенных в целом условиями оказания услуг в организации социальной сферы, по отношению к\nчислу опрошенных  получателей услуг, ответивших на соответствующий вопрос анкеты",88,100]
[6,"МУНИЦИПАЛЬНОЕ БЮДЖЕТНОЕ ДОШКОЛЬНОЕ ОБРАЗОВАТЕЛЬНОЕ УЧРЕЖДЕНИЕ \"МАКУЛОВСКИЙ ДЕТСКИЙ САД\" ВЕРХНЕУСЛОНСКОГО МУНИЦИПАЛЬНОГО РАЙОНА РЕСПУБЛИКИ ТАТАРСТАН, 1615004107","42","40","95.2","объем информации (количество материалов/единиц информации), размещенной  на информационных стендах в помещении организации по отношению к количеству  материалов, размещение которых установлено нормативными правовыми актами",87,100,"Объем информации (количество материалов/единиц информации), размещенной  на официальном сайте организации по отношению к количеству  материалов, размещение которых установлено нормативными правовыми актами",85,100,"Количество  функционирующих дистанционных способов взаимодействия (от одного до трех способов включительно)",3,30,{"$nulls":6},"Количество комфортных условий для предоставления услуг (от одного до четырех включительно)",3,20,{"$nulls":3},"Количество условий доступности организации для инвалидов (от одного до четырех)",3,20,"Количество условий доступности, позволяющих инвалидам получать услуги наравне с другими (от одного до четырех)",3,20]
[6,"МУНИЦИПАЛЬНОЕ БЮДЖЕТНОЕ ДОШКОЛЬНОЕ ОБРАЗОВАТЕЛЬНОЕ УЧРЕЖДЕНИЕ \"МАКУЛОВСКИЙ ДЕТСКИЙ САД\" ВЕРХНЕУСЛОНСКОГО МУНИЦИПАЛЬНОГО РАЙОНА РЕСПУБЛИКИ ТАТАРСТАН, 1615004107","42","40","95.2",{"$nulls":6},"В наличии и функционируют более трех  дистанционных способов взаимодействия","",100,{"$nulls":6},"Наличие пяти  и более комфортных условий для предоставления услуг","",100,{"$nulls":3},"Наличие пяти и более условий доступности для инвалидов","",100,"Наличие пяти и более условий  доступности","",100]
[7,"МУНИЦИПАЛЬНОЕ БЮДЖЕТНОЕ ДОШКОЛЬНОЕ ОБРАЗОВАТЕЛЬНОЕ УЧРЕЖДЕНИЕ \"ВЕРХНЕУСЛОНСКИЙ ДЕТСКИЙ САД \"РАДУГА\"\"ВЕРХНЕУСЛОНСКОГО МУНИЦИПАЛЬНОГО РАЙОНА РЕСПУБЛИКИ ТАТАРСТАН, 1615004065","116","110","94.8","отсутствует информация о деятельности организации социальной сферы","",0,"Отсутствует информация о деятельности организации социальной сферы на ее официальном сайте","",0,"Отсутствуют или не функционируют дистанционные способы взаимодействия","",0,"Число получателей услуг, удовлетворенных качеством, полнотой и доступностью информации о деятельности организации социальной сферы, размещенной на информационных стендах в помещении организации социальной сферы по отношению к числу опрошенных  получателей услуг, ответивших на соответствующий вопрос анкеты",98,100,"число получателей услуг, удовлетворенных качеством, полнотой и доступностью информации о деятельности организации социальной сферы, размещенной на официальном сайте организации социальной сферы по отношению к  числу опрошенных  получателей услуг, ответивших на соответствующий вопрос анкеты",95,100,"Отсутствуют комфортные условия","",0,"Число получателей услуг, удовлетворенных комфортностью предоставления услуг организацией социальной сферы, по отношению к  числу опрошенных  получателей услуг, ответивших на данный вопрос",95,100,"Отсутствуют условия доступности для инвалидов","",0,"Отсутствуют условия доступности, позволяющие инвалидам получать услуги наравне с другими","",0,"Число получателей услуг-инвалидов, удовлетворенных доступностью услуг для инвалидов, по отношению к  числу опрошенных  получателей услуг- инвалидов, ответивших на соответствующий вопрос анкеты",0,100,"Число получателей услуг, удовлетворенных доброжелательностью, вежливостью работников организации социальной сферы, обеспечивающих первичный контакт и информирование получателя услуги,  по отношению к числу опрошенныхполучателей услуг, ответивших на соответствующий вопрос  анкеты",98,100,"Число  получателей услуг, удовлетворенных доброжелательностью, вежливостью работников организации социальной сферы, обеспечивающих непосредственное оказание услуги, по отношению к числу опрошенных получателей услуг, ответивших на соответствующий вопрос анкеты",95,100,"Число получателей услуг, удовлетворенных доброжелательностью, вежливостью работников организации социальной сферы при использовании дистанционных форм взаимодействия, по отношению к числу опрошенных получателей услуг, ответивших на соответствующий вопрос анкеты",85,100,"Число получателей услуг, которые готовы рекомендовать организацию родственникам и знакомым (могли бы ее рекомендовать, если бы была возможность выбора организации, по отношению к числу опрошенных получателей услуг, ответивших на соответствующий вопрос анкеты",97,100,"Число получателей услуг, удовлетворенных организационными условиями предоставления услуг, по отношению к числу опрошенных получателей услуг  ответивших на соответствующий вопрос анкеты",92,100,"Число  получателей услуг, удовлетворенных в целом условиями оказания услуг в организации социальной сферы, по отношению к\nчислу опрошенных  получателей услуг, ответивших на соответствующий вопрос анкеты",95,100]
[7,"МУНИЦИПАЛЬНОЕ БЮДЖЕТНОЕ ДОШКОЛЬНОЕ ОБРАЗОВАТЕЛЬНОЕ УЧРЕЖДЕНИЕ \"ВЕРХНЕУСЛОНСКИЙ ДЕТСКИЙ САД \"РАДУГА\"\"ВЕРХНЕУСЛОНСКОГО МУНИЦИПАЛЬНОГО РАЙОНА РЕСПУБЛИКИ ТАТАРСТАН, 1615004065","116","110","94.8","объем информации (количество материалов/единиц информации), размещенной  на информационных стендах в помещении организации по отношению к количеству  материалов, размещение которых установлено нормативными правовыми актами",98,100,"Объем информации (количество материалов/единиц информации), размещенной  на официальном сайте организации по отношению к количеству  материалов, размещение которых установлено нормативными правовыми актами",95,100,"Количество  функционирующих дистанционных способов взаимодействия (от одного до трех способов включительно)",3,30,{"$nulls":6},"Количество комфортных условий для предоставления услуг (от одного до четырех включительно)",4,20,{"$nulls":3},"Количество условий доступности организации для инвалидов (от одного до четырех)",3,20,"Количество условий доступности, позволяющих инвалидам получать услуги наравне с другими (от одного до четырех)",3,20]
[7,"МУНИЦИПАЛЬНОЕ БЮДЖЕТНОЕ ДОШКОЛЬНОЕ ОБРАЗОВАТЕЛЬНОЕ УЧРЕЖДЕНИЕ \"ВЕРХНЕУСЛОНСКИЙ ДЕТСКИЙ САД \"РАДУГА\"\"ВЕРХНЕУСЛОНСКОГО МУНИЦИПАЛЬНОГО РАЙОНА РЕСПУБЛИКИ ТАТАРСТАН, 1615004065","116","110","94.8",{"$nulls":6},"В наличии и функционируют более трех  дистанционных способов взаимодействия","",100,{"$nulls":6},"Наличие пяти  и более комфортных условий для предоставления услуг","",100,{"$nulls":3},"Наличие пяти и более условий доступности для инвалидов","",100,"Наличие пяти и более условий  доступности","",100]
[8,"МУНИЦИПАЛЬНОЕ БЮДЖЕТНОЕ ДОШКОЛЬНОЕ ОБРАЗОВАТЕЛЬНОЕ УЧРЕЖДЕНИЕ ВЕРХНЕУСЛОНСКИЙ ДЕТСКИЙ САД \"СОЛНЫШКО\" ВЕРХНЕУСЛОНСКОГО МУНИЦИПАЛЬНОГО РАЙОНА РЕСПУБЛИКИ ТАТАРСТАН, 1615012130","97","90","92.7","отсутствует информация о деятельности организации социальной сферы","",0,"Отсутствует информация о деятельности организации социальной сферы на ее официальном сайте","",0,"Отсутствуют или не функционируют дистанционные способы взаимодействия","",0,"Число получателей услуг, удовлетворенных качеством, полнотой и доступностью информации о деятельности организации социальной сферы, размещенной на информационных стендах в помещении организации социальной сферы по отношению к числу опрошенных  получателей услуг, ответивших на соответствующий вопрос анкеты",84,100,"число получателей услуг, удовлетворенных качеством, полнотой и доступностью информации о деятельности организации социальной сферы, размещенной на официальном сайте организации социальной сферы по отношению к  числу опрошенных  получателей услуг, ответивших на соответствующий вопрос анкеты",80,100,"Отсутствуют комфортные условия","",0,"Число получателей услуг, удовлетворенных комфортностью предоставления услуг организацией социальной сферы, по отношению к  числу опрошенных  получателей услуг, ответивших на данный вопрос",85,100,"Отсутствуют условия доступности для инвалидов","",0,"Отсутствуют условия доступности, позволяющие инвалидам получать услуги наравне с другими","",0,"Число получателей услуг-инвалидов, удовлетворенных доступностью услуг для инвалидов, по отношению к  числу опрошенных  получателей услуг- инвалидов, ответивших на соответствующий вопрос анкеты",0,100,"Число получателей услуг, удовлетворенных доброжелательностью, вежливостью работников организации социальной сферы, обеспечивающих первичный контакт и информирование получателя услуги,  по отношению к числу опрошенныхполучателей услуг, ответивших на соответствующий вопрос  анкеты",85,100,"Число  получателей услуг, удовлетворенных доброжелательностью, вежливостью работников организации социальной сферы, обеспечивающих непосредственное оказание услуги, по отношению к числу опрошенных получателей услуг, ответивших на соответствующий вопрос анкеты",88,100,"Число получателей услуг, удовлетворенных доброжелательностью, вежливостью работников организации социальной сферы при использовании дистанционных форм взаимодействия, по отношению к числу опрошенных получателей услуг, ответивших на соответствующий вопрос анкеты",84,100,"Число получателей услуг, которые готовы рекомендовать организацию родственникам и знакомым (могли бы ее рекомендовать, если бы была возможность выбора организации, по отношению к числу опрошенных получателей услуг, ответивших на соответствующий вопрос анкеты",82,100,"Число получателей услуг, удовлетворенных организационными условиями предоставления услуг, по отношению к числу опрошенных получателей услуг  ответивших на соответствующий вопрос анкеты",85,100,"Число  получателей услуг, удовлетворенных в целом условиями оказания услуг в организации социальной сферы, по отношению к\nчислу опрошенных  получателей услуг, ответивших на соответствующий вопрос анкеты",85,100]
[8,"МУНИЦИПАЛЬНОЕ БЮДЖЕТНОЕ ДОШКОЛЬНОЕ ОБРАЗОВАТЕЛЬНОЕ УЧРЕЖДЕНИЕ ВЕРХНЕУСЛОНСКИЙ ДЕТСКИЙ САД \"СОЛНЫШКО\" ВЕРХНЕУСЛОНСКОГО МУНИЦИПАЛЬНОГО РАЙОНА РЕСПУБЛИКИ ТАТАРСТАН, 1615012130","97","90","92.7","объем информации (количество материалов/единиц информации), размещенной  на информационных стендах в помещении организации по отношению к количеству  материалов, размещение которых установлено нормативными правовыми актами",87,100,"Объем информации (количество материалов/единиц информации), размещенной  на официальном сайте организации по отношению к количеству  материалов, размещение которых установлено нормативными правовыми актами",85,100,"Количество  функционирующих дистанционных способов взаимодействия (от одного до трех способов включительно)",3,30,{"$nulls":6},"Количество комфортных условий для предоставления услуг (от одного до четырех включительно)",4,20,{"$nulls":3},"Количество условий доступности организации для инвалидов (от одного до четырех)",3,20,"Количество условий доступности, позволяющих инвалидам получать услуги наравне с другими (от одного до четырех)",3,20]
[8,"МУНИЦИПАЛЬНОЕ БЮДЖЕТНОЕ ДОШКОЛЬНОЕ ОБРАЗОВАТЕЛЬНОЕ УЧРЕЖДЕНИЕ ВЕРХНЕУСЛОНСКИЙ ДЕТСКИЙ САД \"СОЛНЫШКО\" ВЕРХНЕУСЛОНСКОГО МУНИЦИПАЛЬНОГО РАЙОНА РЕСПУБЛИКИ ТАТАРСТАН, 1615012130","97","90","92.7",{"$nulls":6},"В наличии и функционируют более трех  дистанционных способов взаимодействия","",100,{"$nulls":6},"Наличие пяти  и более комфортных условий для предоставления услуг","",100,{"$nulls":3},"Наличие пяти и более условий доступности для инвалидов","",100,"Наличие пяти и более условий  доступности","",100]
[9,"МУНИЦИПАЛЬНОЕ БЮДЖЕТНОЕ ДОШКОЛЬНОЕ ОБРАЗОВАТЕЛЬНОЕ УЧРЕЖДЕНИЕ \"ВЕРХНЕУСЛОНСКИЙ ДЕТСКИЙ САД \"БЕРЕЗКА\" ВЕРХНЕУСЛОНСКОГО МУНИЦИПАЛЬНОГО РАЙОНА РЕСПУБЛИКИ ТАТАРСТАН, 1615004097","116","111","95.6","отсутствует информация о деятельности организации социальной сферы","",0,"Отсутствует информация о деятельности организации социальной сферы на ее официальном сайте","",0,"Отсутствуют или не функционируют дистанционные способы взаимодействия","",0,"Число получателей услуг, удовлетворенных качеством, полнотой и доступностью информации о деятельности организации социальной сферы, размещенной на информационных стендах в помещении организации социальной сферы по отношению к числу опрошенных  получателей услуг, ответивших на соответствующий вопрос анкеты",92,100,"число получателей услуг, удовлетворенных качеством, полнотой и доступностью информации о деятельности организации социальной сферы, размещенной на официальном сайте организации социальной сферы по отношению к  числу опрошенных  получателей услуг, ответивших на соответствующий вопрос анкеты",90,100,"Отсутствуют комфортные условия","",0,"Число получателей услуг, удовлетворенных комфортностью предоставления услуг организацией социальной сферы, по отношению к  числу опрошенных  получателей услуг, ответивших на данный вопрос",92,100,"Отсутствуют условия доступности для инвалидов","",0,"Отсутствуют условия доступности, позволяющие инвалидам получать услуги наравне с другими","",0,"Число получателей услуг-инвалидов, удовлетворенных доступностью услуг для инвалидов, по отношению к  числу опрошенных  получателей услуг- инвалидов, ответивших на соответствующий вопрос анкеты",0,100,"Число получателей услуг, удовлетворенных доброжелательностью, вежливостью работников организации социальной сферы, обеспечивающих первичный контакт и информирование получателя услуги,  по отношению к числу опрошенныхполучателей услуг, ответивших на соответствующий вопрос  анкеты",92,100,"Число  получателей услуг, удовлетворенных доброжелательностью, вежливостью работников организации социальной сферы, обеспечивающих непосредственное оказание услуги, по отношению к числу опрошенных получателей услуг, ответивших на соответствующий вопрос анкеты",92,100,"Число получателей услуг, удовлетворенных доброжелательностью, вежливостью работников организации социальной сферы при использовании дистанционных форм взаимодействия, по отношению к числу опрошенных получателей услуг, ответивших на соответствующий вопрос анкеты",85,100,"Число получателей услуг, которые готовы рекомендовать организацию родственникам и знакомым (могли бы ее рекомендовать, если бы была возможность выбора организации, по отношению к числу опрошенных получателей услуг, ответивших на соответствующий вопрос анкеты",89,100,"Число получателей услуг, удовлетворенных организационными условиями предоставления услуг, по отношению к числу опрошенных получателей услуг  ответивших на соответствующий вопрос анкеты",92,100,"Число  получателей услуг, удовлетворенных в целом условиями оказания услуг в организации социальной сферы, по отношению к\nчислу опрошенных  получателей услуг, ответивших на соответствующий вопрос анкеты",92,100]
[9,"МУНИЦИПАЛЬНОЕ БЮДЖЕТНОЕ ДОШКОЛЬНОЕ ОБРАЗОВАТЕЛЬНОЕ УЧРЕЖДЕНИЕ \"ВЕРХНЕУСЛОНСКИЙ ДЕТСКИЙ САД \"БЕРЕЗКА\" ВЕРХНЕУСЛОНСКОГО МУНИЦИПАЛЬНОГО РАЙОНА РЕСПУБЛИКИ ТАТАРСТАН, 1615004097","116","111","95.6","объем информации (количество материалов/единиц информации), размещенной  на информационных стендах в помещении организации по отношению к количеству  материалов, размещение которых установлено нормативными правовыми актами",92,100,"Объем информации (количество материалов/единиц информации), размещенной  на официальном сайте организации по отношению к количеству  материалов, размещение которых установлено нормативными правовыми актами",89,100,"Количество  функционирующих дистанционных способов взаимодействия (от одного до трех способов включительно)",3,30,{"$nulls":6},"Количество комфортных условий для предоставления услуг (от одного до четырех включительно)",3,20,{"$nulls":3},"Количество условий доступности организации для инвалидов (от одного до четырех)",3,20,"Количество условий доступности, позволяющих инвалидам получать услуги наравне с другими (от одного до четырех)",3,20]
[9,"МУНИЦИПАЛЬНОЕ БЮДЖЕТНОЕ ДОШКОЛЬНОЕ ОБРАЗОВАТЕЛЬНОЕ УЧРЕЖДЕНИЕ \"ВЕРХНЕУСЛОНСКИЙ ДЕТСКИЙ САД \"БЕРЕЗКА\" ВЕРХНЕУСЛОНСКОГО МУНИЦИПАЛЬНОГО РАЙОНА РЕСПУБЛИКИ ТАТАРСТАН, 1615004097","116","111","95.6",{"$nulls":6},"В наличии и функционируют более трех  дистанционных способов взаимодействия","",100,{"$nulls":6},"Наличие пяти  и более комфортных условий для предоставления услуг","",100,{"$nulls":3},"Наличие пяти и более условий доступности для инвалидов","",100,"Наличие пяти и более условий  доступности","",100]
[10,"МУНИЦИПАЛЬНОЕ БЮДЖЕТНОЕ ДОШКОЛЬНОЕ ОБРАЗОВАТЕЛЬНОЕ УЧРЕЖДЕНИЕ \"КИЛЬДЕЕВСКИЙ ДЕТСКИЙ САД\" ВЕРХНЕУСЛОНСКОГО МУНИЦИПАЛЬНОГО РАЙОНА РЕСПУБЛИКИ ТАТАРСТАН, 1615004153","2","2","100.0","отсутствует информация о деятельности организации социальной сферы","",0,"Отсутствует информация о деятельности организации социальной сферы на ее официальном сайте","",0,"Отсутствуют или не функционируют дистанционные способы взаимодействия","",0,"Число получателей услуг, удовлетворенных качеством, полнотой и доступностью информации о деятельности организации социальной сферы, размещенной на информационных стендах в помещении организации социальной сферы по отношению к числу опрошенных  получателей услуг, ответивших на соответствующий вопрос анкеты",100,100,"число получателей услуг, удовлетворенных качеством, полнотой и доступностью информации о деятельности организации социальной сферы, размещенной на официальном сайте организации социальной сферы по отношению к  числу опрошенных  получателей услуг, ответивших на соответствующий вопрос анкеты",100,100,"Отсутствуют комфортные условия","",0,"Число получателей услуг, удовлетворенных комфортностью предоставления услуг организацией социальной сферы, по отношению к  числу опрошенных  получателей услуг, ответивших на данный вопрос",100,100,"Отсутствуют условия доступности для инвалидов","",0,"Отсутствуют условия доступности, позволяющие инвалидам получать услуги наравне с другими","",0,"Число получателей услуг-инвалидов, удовлетворенных доступностью услуг для инвалидов, по отношению к  числу опрошенных  получателей услуг- инвалидов, ответивших на соответствующий вопрос анкеты",0,100,"Число получателей услуг, удовлетворенных доброжелательностью, вежливостью работников организации социальной сферы, обеспечивающих первичный контакт и информирование получателя услуги,  по отношению к числу опрошенныхполучателей услуг, ответивших на соответствующий вопрос  анкеты",100,100,"Число  получателей услуг, удовлетворенных доброжелательностью, вежливостью работников организации социальной сферы, обеспечивающих непосредственное оказание услуги, по отношению к числу опрошенных получателей услуг, ответивших на соответствующий вопрос анкеты",100,100,"Число получателей услуг, удовлетворенных доброжелательностью, вежливостью работников организации социальной сферы при использовании дистанционных форм взаимодействия, по отношению к числу опрошенных получателей услуг, ответивших на соответствующий вопрос анкеты",100,100,"Число получателей услуг, которые готовы рекомендовать организацию родственникам и знакомым (могли бы ее рекомендовать, если бы была возможность выбора организации, по отношению к числу опрошенных получателей услуг, ответивших на соответствующий вопрос анкеты",100,100,"Число получателей услуг, удовлетворенных организационными условиями предоставления услуг, по отношению к числу опрошенных получателей услуг  ответивших на соответствующий вопрос анкеты",100,100,"Число  получателей услуг, удовлетворенных в целом условиями оказания услуг в организации социальной сферы, по отношению к\nчислу опрошенных  получателей услуг, ответивших на соответствующий вопрос анкеты",100,100]
[10,"МУНИЦИПАЛЬНОЕ БЮДЖЕТНОЕ ДОШКОЛЬНОЕ ОБРАЗОВАТЕЛЬНОЕ УЧРЕЖДЕНИЕ \"КИЛЬДЕЕВСКИЙ ДЕТСКИЙ САД\" ВЕРХНЕУСЛОНСКОГО МУНИЦИПАЛЬНОГО РАЙОНА РЕСПУБЛИКИ ТАТАРСТАН, 1615004153","2","2","100.0","объем информации (количество материалов/единиц информации), размещенной  на информационных стендах в помещении организации по отношению к количеству  материалов, размещение которых установлено нормативными правовыми актами",93,100,"Объем информации (количество материалов/единиц информации), размещенной  на официальном сайте организации по отношению к количеству  материалов, размещение которых установлено нормативными правовыми актами",88,100,"Количество  функционирующих дистанционных способов взаимодействия (от одного до трех способов включительно)",3,30,{"$nulls":6},"Количество комфортных условий для предоставления услуг (от одного до четырех включительно)",3,20,{"$nulls":3},"Количество условий доступности организации для инвалидов (от одного до четырех)",3,20,"Количество условий доступности, позволяющих инвалидам получать услуги наравне с другими (от одного до четырех)",3,20]
[10,"МУНИЦИПАЛЬНОЕ БЮДЖЕТНОЕ ДОШКОЛЬНОЕ ОБРАЗОВАТЕЛЬНОЕ УЧРЕЖДЕНИЕ \"КИЛЬДЕЕВСКИЙ ДЕТСКИЙ САД\" ВЕРХНЕУСЛОНСКОГО МУНИЦИПАЛЬНОГО РАЙОНА РЕСПУБЛИКИ ТАТАРСТАН, 1615004153","2","2","100.0",{"$nulls":6},"В наличии и функционируют более трех  дистанционных способов взаимодействия","",100,{"$nulls":6},"Наличие пяти  и более комфортных условий для предоставления услуг","",100,{"$nulls":3},"Наличие пяти и более условий доступности для инвалидов","",100,"Наличие пяти и более условий  доступности","",100]
[11,"МУНИЦИПАЛЬНОЕ БЮДЖЕТНОЕ ДОШКОЛЬНОЕ ОБРАЗОВАТЕЛЬНОЕ УЧРЕЖДЕНИЕ \"КОРГУЗИНСКИЙ ДЕТСКИЙ САД\" ВЕРХНЕУСЛОНСКОГО МУНИЦИПАЛЬНОГО РАЙОНА РЕСПУБЛИКИ ТАТАРСТАН, 1615003858","11","11","100.0","отсутствует информация о деятельности организации социальной сферы","",0,"Отсутствует информация о деятельности организации социальной сферы на ее официальном сайте","",0,"Отсутствуют или не функционируют дистанционные способы взаимодействия","",0,"Число получателей услуг, удовлетворенных качеством, полнотой и доступностью информации о деятельности организации социальной сферы, размещенной на информационных стендах в помещении организации социальной сферы по отношению к числу опрошенных  получателей услуг, ответивших на соответствующий вопрос анкеты",95,100,"число получателей услуг, удовлетворенных качеством, полнотой и доступностью информации о деятельности организации социальной сферы, размещенной на официальном сайте организации социальной сферы по отношению к  числу опрошенных  получателей услуг, ответивших на соответствующий вопрос анкеты",94,100,"Отсутствуют комфортные условия","",0,"Число получателей услуг, удовлетворенных комфортностью предоставления услуг организацией социальной сферы, по отношению к  числу опрошенных  получателей услуг, ответивших на данный вопрос",92,100,"Отсутствуют условия доступности для инвалидов","",0,"Отсутствуют условия доступности, позволяющие инвалидам получать услуги наравне с другими","",0,"Число получателей услуг-инвалидов, удовлетворенных доступностью услуг для инвалидов, по отношению к  числу опрошенных  получателей услуг- инвалидов, ответивших на соответствующий вопрос анкеты",0,100,"Число получателей услуг, удовлетворенных доброжелательностью, вежливостью работников организации социальной сферы, обеспечивающих первичный контакт и информирование получателя услуги,  по отношению к числу опрошенныхполучателей услуг, ответивших на соответствующий вопрос  анкеты",92,100,"Число  получателей услуг, удовлетворенных доброжелательностью, вежливостью работников организации социальной сферы, обеспечивающих непосредственное оказание услуги, по отношению к числу опрошенных получателей услуг, ответивших на соответствующий вопрос анкеты",92,100,"Число получателей услуг, удовлетворенных доброжелательностью, вежливостью работников организации социальной сферы при использовании дистанционных форм взаимодействия, по отношению к числу опрошенных получателей услуг, ответивших на соответствующий вопрос анкеты",92,100,"Число получателей услуг, которые готовы рекомендовать организацию родственникам и знакомым (могли бы ее рекомендовать, если бы была возможность выбора организации, по отношению к числу опрошенных получателей услуг, ответивших на соответствующий вопрос анкеты",92,100,"Число получателей услуг, удовлетворенных организационными условиями предоставления услуг, по отношению к числу опрошенных получателей услуг  ответивших на соответствующий вопрос анкеты",90,100,"Число  получателей услуг, удовлетворенных в целом условиями оказания услуг в организации социальной сферы, по отношению к\nчислу опрошенных  получателей услуг, ответивших на соответствующий вопрос анкеты",92,100]
[11,"МУНИЦИПАЛЬНОЕ БЮДЖЕТНОЕ ДОШКОЛЬНОЕ ОБРАЗОВАТЕЛЬНОЕ УЧРЕЖДЕНИЕ \"КОРГУЗИНСКИЙ ДЕТСКИЙ САД\" ВЕРХНЕУСЛОНСКОГО МУНИЦИПАЛЬНОГО РАЙОНА РЕСПУБЛИКИ ТАТАРСТАН, 1615003858","11","11","100.0","объем информации (количество материалов/единиц информации), размещенной  на информационных стендах в помещении организации по отношению к количеству  материалов, размещение которых установлено нормативными правовыми актами",95,100,"Объем информации (количество материалов/единиц информации), размещенной  на официальном сайте организации по отношению к количеству  материалов, размещение которых установлено нормативными правовыми актами",94,100,"Количество  функционирующих дистанционных способов взаимодействия (от одного до трех способов включительно)",3,30,{"$nulls":6},"Количество комфортных условий для предоставления услуг (от одного до четырех включительно)",3,20,{"$nulls":3},"Количество условий доступности организации для инвалидов (от одного до четырех)",3,20,"Количество условий доступности, позволяющих инвалидам получать услуги наравне с другими (от одного до четырех)",3,20]
[11,"МУНИЦИПАЛЬНОЕ БЮДЖЕТНОЕ ДОШКОЛЬНОЕ ОБРАЗОВАТЕЛЬНОЕ УЧРЕЖДЕНИЕ \"КОРГУЗИНСКИЙ ДЕТСКИЙ САД\" ВЕРХНЕУСЛОНСКОГО МУНИЦИПАЛЬНОГО РАЙОНА РЕСПУБЛИКИ ТАТАРСТАН, 1615003858","11","11","100.0",{"$nulls":6},"В наличии и функционируют более трех  дистанционных способов взаимодействия","",100,{"$nulls":6},"Наличие пяти  и более комфортных условий для предоставления услуг","",100,{"$nulls":3},"Наличие пяти и более условий доступности для инвалидов","",100,"Наличие пяти и более условий  доступности","",100]
[12,"МУНИЦИПАЛЬНОЕ БЮДЖЕТНОЕ ДОШКОЛЬНОЕ ОБРАЗОВАТЕЛЬНОЕ УЧРЕЖДЕНИЕ \"КУРАЛОВСКИЙ ДЕТСКИЙ САД\" ВЕРХНЕУСЛОНСКОГО МУНИЦИПАЛЬНОГО РАЙОНА РЕСПУБЛИКИ ТАТАРСТАН, 1615003865","42","40","95.2","отсутствует информация о деятельности организации социальной сферы","",0,"Отсутствует информация о деятельности организации социальной сферы на ее официальном сайте","",0,"Отсутствуют или не функционируют дистанционные способы взаимодействия","",0,"Число получателей услуг, удовлетворенных качеством, полнотой и доступностью информации о деятельности организации социальной сферы, размещенной на информационных стендах в помещении организации социальной сферы по отношению к числу опрошенных  получателей услуг, ответивших на соответствующий вопрос анкеты",93,100,"число получателей услуг, удовлетворенных качеством, полнотой и доступностью информации о деятельности организации социальной сферы, размещенной на официальном сайте организации социальной сферы по отношению к  числу опрошенных  получателей услуг, ответивших на соответствующий вопрос анкеты",90,100,"Отсутствуют комфортные условия","",0,"Число получателей услуг, удовлетворенных комфортностью предоставления услуг организацией социальной сферы, по отношению к  числу опрошенных  получателей услуг, ответивших на данный вопрос",91,100,"Отсутствуют условия доступности для инвалидов","",0,"Отсутствуют условия доступности, позволяющие инвалидам получать услуги наравне с другими","",0,"Число получателей услуг-инвалидов, удовлетворенных доступностью услуг для инвалидов, по отношению к  числу опрошенных  получателей услуг- инвалидов, ответивших на соответствующий вопрос анкеты",0,100,"Число получателей услуг, удовлетворенных доброжелательностью, вежливостью работников организации социальной сферы, обеспечивающих первичный контакт и информирование получателя услуги,  по отношению к числу опрошенныхполучателей услуг, ответивших на соответствующий вопрос  анкеты",94,100,"Число  получателей услуг, удовлетворенных доброжелательностью, вежливостью работников организации социальной сферы, обеспечивающих непосредственное оказание услуги, по отношению к числу опрошенных получателей услуг, ответивших на соответствующий вопрос анкеты",92,100,"Число получателей услуг, удовлетворенных доброжелательностью, вежливостью работников организации социальной сферы при использовании дистанционных форм взаимодействия, по отношению к числу опрошенных получателей услуг, ответивших на соответствующий вопрос анкеты",88,100,"Число получателей услуг, которые готовы рекомендовать организацию родственникам и знакомым (могли бы ее рекомендовать, если бы была возможность выбора организации, по отношению к числу опрошенных получателей услуг, ответивших на соответствующий вопрос анкеты",91,100,"Число получателей услуг, удовлетворенных организационными условиями предоставления услуг, по отношению к числу опрошенных получателей услуг  ответивших на соответствующий вопрос анкеты",92,100,"Число  получателей услуг, удовлетворенных в целом условиями оказания услуг в организации социальной сферы, по отношению к\nчислу опрошенных  получателей услуг, ответивших на соответствующий вопрос анкеты",92,100]
[12,"МУНИЦИПАЛЬНОЕ БЮДЖЕТНОЕ ДОШКОЛЬНОЕ ОБРАЗОВАТЕЛЬНОЕ УЧРЕЖДЕНИЕ \"КУРАЛОВСКИЙ ДЕТСКИЙ САД\" ВЕРХНЕУСЛОНСКОГО МУНИЦИПАЛЬНОГО РАЙОНА РЕСПУБЛИКИ ТАТАРСТАН, 1615003865","42","40","95.2","объем информации (количество материалов/единиц информации), размещенной  на информационных стендах в помещении организации по отношению к количеству  материалов, размещение которых установлено нормативными правовыми актами",95,100,"Объем информации (количество материалов/единиц информации), размещенной  на официальном сайте организации по отношению к количеству  материалов, размещение которых установлено нормативными правовыми актами",95,100,"Количество  функционирующих дистанционных способов взаимодействия (от одного до трех способов включительно)",3,30,{"$nulls":6},"Количество комфортных условий для предоставления услуг (от одного до четырех включительно)",3,20,{"$nulls":3},"Количество условий доступности организации для инвалидов (от одного до четырех)",3,20,"Количество условий доступности, позволяющих инвалидам получать услуги наравне с другими (от одного до четырех)",3,20]
[12,"МУНИЦИПАЛЬНОЕ БЮДЖЕТНОЕ ДОШКОЛЬНОЕ ОБРАЗОВАТЕЛЬНОЕ УЧРЕЖДЕНИЕ \"КУРАЛОВСКИЙ ДЕТСКИЙ САД\" ВЕРХНЕУСЛОНСКОГО МУНИЦИПАЛЬНОГО РАЙОНА РЕСПУБЛИКИ ТАТАРСТАН, 1615003865","42","40","95.2",{"$nulls":6},"В наличии и функционируют более трех  дистанционных способов взаимодействия","",100,{"$nulls":6},"Наличие пяти  и более комфортных условий для предоставления услуг","",100,{"$nulls":3},"Наличие пяти и более условий доступности для инвалидов","",100,"Наличие пяти и более условий  доступности","",100]
[13,"МУНИЦИПАЛЬНОЕ БЮДЖЕТНОЕ ДОШКОЛЬНОЕ ОБРАЗОВАТЕЛЬНОЕ УЧРЕЖДЕНИЕ \"МАЙДАНСКИЙ ДЕТСКИЙ САД\" ВЕРХНЕУСЛОНСКОГО МУНИЦИПАЛЬНОГО РАЙОНА РЕСПУБЛИКИ ТАТАРСТАН, 1615004146","6","6","100.0","отсутствует информация о деятельности организации социальной сферы","",0,"Отсутствует информация о деятельности организации социальной сферы на ее официальном сайте","",0,"Отсутствуют или не функционируют дистанционные способы взаимодействия","",0,"Число получателей услуг, удовлетворенных качеством, полнотой и доступностью информации о деятельности организации социальной сферы, размещенной на информационных стендах в помещении организации социальной сферы по отношению к числу опрошенных  получателей услуг, ответивших на соответствующий вопрос анкеты",100,100,"число получателей услуг, удовлетворенных качеством, полнотой и доступностью информации о деятельности организации социальной сферы, размещенной на официальном сайте организации социальной сферы по отношению к  числу опрошенных  получателей услуг, ответивших на соответствующий вопрос анкеты",92,100,"Отсутствуют комфортные условия","",0,"Число получателей услуг, удовлетворенных комфортностью предоставления услуг организацией социальной сферы, по отношению к  числу опрошенных  получателей услуг, ответивших на данный вопрос",100,100,"Отсутствуют условия доступности для инвалидов","",0,"Отсутствуют условия доступности, позволяющие инвалидам получать услуги наравне с другими","",0,"Число получателей услуг-инвалидов, удовлетворенных доступностью услуг для инвалидов, по отношению к  числу опрошенных  получателей услуг- инвалидов, ответивших на соответствующий вопрос анкеты",0,100,"Число получателей услуг, удовлетворенных доброжелательностью, вежливостью работников организации социальной сферы, обеспечивающих первичный контакт и информирование получателя услуги,  по отношению к числу опрошенныхполучателей услуг, ответивших на соответствующий вопрос  анкеты",100,100,"Число  получателей услуг, удовлетворенных доброжелательностью, вежливостью работников организации социальной сферы, обеспечивающих непосредственное оказание услуги, по отношению к числу опрошенных получателей услуг, ответивших на соответствующий вопрос анкеты",100,100,"Число получателей услуг, удовлетворенных доброжелательностью, вежливостью работников организации социальной сферы при использовании дистанционных форм взаимодействия, по отношению к числу опрошенных получателей услуг, ответивших на соответствующий вопрос анкеты",92,100,"Число получателей услуг, которые готовы рекомендовать организацию родственникам и знакомым (могли бы ее рекомендовать, если бы была возможность выбора организации, по отношению к числу опрошенных получателей услуг, ответивших на соответствующий вопрос анкеты",100,100,"Число получателей услуг, удовлетворенных организационными условиями предоставления услуг, по отношению к числу опрошенных получателей услуг  ответивших на соответствующий вопрос анкеты",100,100,"Число  получателей услуг, удовлетворенных в целом условиями оказания услуг в организации социальной сферы, по отношению к\nчислу опрошенных  получателей услуг, ответивших на соответствующий вопрос анкеты",100,100]
[13,"МУНИЦИПАЛЬНОЕ БЮДЖЕТНОЕ ДОШКОЛЬНОЕ ОБРАЗОВАТЕЛЬНОЕ УЧРЕЖДЕНИЕ \"МАЙДАНСКИЙ ДЕТСКИЙ САД\" ВЕРХНЕУСЛОНСКОГО МУНИЦИПАЛЬНОГО РАЙОНА РЕСПУБЛИКИ ТАТАРСТАН, 1615004146","6","6","100.0","объем информации (количество материалов/единиц информации), размещенной  на информационных стендах в помещении организации по отношению к количеству  материалов, размещение которых установлено нормативными правовыми актами",95,100,"Объем информации (количество материалов/единиц информации), размещенной  на официальном сайте организации по отношению к количеству  материалов, размещение которых установлено нормативными правовыми актами",90,100,"Количество  функционирующих дистанционных способов взаимодействия (от одного до трех способов включительно)",3,30,{"$nulls":6},"Количество комфортных условий для предоставления услуг (от одного до четырех включительно)",3,20,{"$nulls":3},"Количество условий доступности организации для инвалидов (от одного до четырех)",3,20,"Количество условий доступности, позволяющих инвалидам получать услуги наравне с другими (от одного до четырех)",3,20]
[13,"МУНИЦИПАЛЬНОЕ БЮДЖЕТНОЕ ДОШКОЛЬНОЕ ОБРАЗОВАТЕЛЬНОЕ УЧРЕЖДЕНИЕ \"МАЙДАНСКИЙ ДЕТСКИЙ САД\" ВЕРХНЕУСЛОНСКОГО МУНИЦИПАЛЬНОГО РАЙОНА РЕСПУБЛИКИ ТАТАРСТАН, 1615004146","6","6","100.0",{"$nulls":6},"В наличии и функционируют более трех  дистанционных способов взаимодействия","",100,{"$nulls":6},"Наличие пяти  и более комфортных условий для предоставления услуг","",100,{"$nulls":3},"Наличие пяти и более условий доступности для инвалидов","",100,"Наличие пяти и более условий  доступности","",100]
[14,"МУНИЦИПАЛЬНОЕ  БЮДЖЕТНОЕ ДОШКОЛЬНОЕ ОБРАЗОВАТЕЛЬНОЕ УЧРЕЖДЕНИЕ \"НАБЕРЕЖНО-МОРКВАШСКИЙ ДЕТСКИЙ САД\" ВЕРХНЕУСЛОНСКОГО МУНИЦИПАЛЬНОГО РАЙОНА РЕСПУБЛИКИ ТАТАРСТАН, 1615006961","50","43","86.0","отсутствует информация о деятельности организации социальной сферы","",0,"Отсутствует информация о деятельности организации социальной сферы на ее официальном сайте","",0,"Отсутствуют или не функционируют дистанционные способы взаимодействия","",0,"Число получателей услуг, удовлетворенных качеством, полнотой и доступностью информации о деятельности организации социальной сферы, размещенной на информационных стендах в помещении организации социальной сферы по отношению к числу опрошенных  получателей услуг, ответивших на соответствующий вопрос анкеты",89,100,"число получателей услуг, удовлетворенных качеством, полнотой и доступностью информации о деятельности организации социальной сферы, размещенной на официальном сайте организации социальной сферы по отношению к  числу опрошенных  получателей услуг, ответивших на соответствующий вопрос анкеты",87,100,"Отсутствуют комфортные условия","",0,"Число получателей услуг, удовлетворенных комфортностью предоставления услуг организацией социальной сферы, по отношению к  числу опрошенных  получателей услуг, ответивших на данный вопрос",86,100,"Отсутствуют условия доступности для инвалидов","",0,"Отсутствуют условия доступности, позволяющие инвалидам получать услуги наравне с другими","",0,"Число получателей услуг-инвалидов, удовлетворенных доступностью услуг для инвалидов, по отношению к  числу опрошенных  получателей услуг- инвалидов, ответивших на соответствующий вопрос анкеты",0,100,"Число получателей услуг, удовлетворенных доброжелательностью, вежливостью работников организации социальной сферы, обеспечивающих первичный контакт и информирование получателя услуги,  по отношению к числу опрошенныхполучателей услуг, ответивших на соответствующий вопрос  анкеты",89,100,"Число  получателей услуг, удовлетворенных доброжелательностью, вежливостью работников организации социальной сферы, обеспечивающих непосредственное оказание услуги, по отношению к числу опрошенных получателей услуг, ответивших на соответствующий вопрос анкеты",88,100,"Число получателей услуг, удовлетворенных доброжелательностью, вежливостью работников организации социальной сферы при использовании дистанционных форм взаимодействия, по отношению к числу опрошенных получателей услуг, ответивших на соответствующий вопрос анкеты",85,100,"Число получателей услуг, которые готовы рекомендовать организацию родственникам и знакомым (могли бы ее рекомендовать, если бы была возможность выбора организации, по отношению к числу опрошенных получателей услуг, ответивших на соответствующий вопрос анкеты",87,100,"Число получателей услуг, удовлетворенных организационными условиями предоставления услуг, по отношению к числу опрошенных получателей услуг  ответивших на соответствующий вопрос анкеты",85,100,"Число  получателей услуг, удовлетворенных в целом условиями оказания услуг в организации социальной сферы, по отношению к\nчислу опрошенных  получателей услуг, ответивших на соответствующий вопрос анкеты",87,100]
[14,"МУНИЦИПАЛЬНОЕ  БЮДЖЕТНОЕ ДОШКОЛЬНОЕ ОБРАЗОВАТЕЛЬНОЕ УЧРЕЖДЕНИЕ \"НАБЕРЕЖНО-МОРКВАШСКИЙ ДЕТСКИЙ САД\" ВЕРХНЕУСЛОНСКОГО МУНИЦИПАЛЬНОГО РАЙОНА РЕСПУБЛИКИ ТАТАРСТАН, 1615006961","50","43","86.0","объем информации (количество материалов/единиц информации), размещенной  на информационных стендах в помещении организации по отношению к количеству  материалов, размещение которых установлено нормативными правовыми актами",85,100,"Объем информации (количество материалов/единиц информации), размещенной  на официальном сайте организации по отношению к количеству  материалов, размещение которых установлено нормативными правовыми актами",89,100,"Количество  функционирующих дистанционных способов взаимодействия (от одного до трех способов включительно)",3,30,{"$nulls":6},"Количество комфортных условий для предоставления услуг (от одного до четырех включительно)",3,20,{"$nulls":3},"Количество условий доступности организации для инвалидов (от одного до четырех)",3,20,"Количество условий доступности, позволяющих инвалидам получать услуги наравне с другими (от одного до четырех)",3,20]
[14,"МУНИЦИПАЛЬНОЕ  БЮДЖЕТНОЕ ДОШКОЛЬНОЕ ОБРАЗОВАТЕЛЬНОЕ УЧРЕЖДЕНИЕ \"НАБЕРЕЖНО-МОРКВАШСКИЙ ДЕТСКИЙ САД\" ВЕРХНЕУСЛОНСКОГО МУНИЦИПАЛЬНОГО РАЙОНА РЕСПУБЛИКИ ТАТАРСТАН, 1615006961","50","43","86.0",{"$nulls":6},"В наличии и функционируют более трех  дистанционных способов взаимодействия","",100,{"$nulls":6},"Наличие пяти  и более комфортных условий для предоставления услуг","",100,{"$nulls":3},"Наличие пяти и более условий доступности для инвалидов","",100,"Наличие пяти и более условий  доступности","",100]
[15,"МУНИЦИПАЛЬНОЕ БЮДЖЕТНОЕ ДОШКОЛЬНОЕ ОБРАЗОВАТЕЛЬНОЕ УЧРЕЖДЕНИЕ \"НИЖНЕУСЛОНСКИЙ ДЕТСКИЙ САД\" ВЕРХНЕУСЛОНСКОГО МУНИЦИПАЛЬНОГО РАЙОНА РЕСПУБЛИКИ ТАТАРСТАН, 1615004139","21","21","100.0","отсутствует информация о деятельности организации социальной сферы","",0,"Отсутствует информация о деятельности организации социальной сферы на ее официальном сайте","",0,"Отсутствуют или не функционируют дистанционные способы взаимодействия","",0,"Число получателей услуг, удовлетворенных качеством, полнотой и доступностью информации о деятельности организации социальной сферы, размещенной на информационных стендах в помещении организации социальной сферы по отношению к числу опрошенных  получателей услуг, ответивших на соответствующий вопрос анкеты",92,100,"число получателей услуг, удовлетворенных качеством, полнотой и доступностью информации о деятельности организации социальной сферы, размещенной на официальном сайте организации социальной сферы по отношению к  числу опрошенных  получателей услуг, ответивших на соответствующий вопрос анкеты",90,100,"Отсутствуют комфортные условия","",0,"Число получателей услуг, удовлетворенных комфортностью предоставления услуг организацией социальной сферы, по отношению к  числу опрошенных  получателей услуг, ответивших на данный вопрос",91,100,"Отсутствуют условия доступности для инвалидов","",0,"Отсутствуют условия доступности, позволяющие инвалидам получать услуги наравне с другими","",0,"Число получателей услуг-инвалидов, удовлетворенных доступностью услуг для инвалидов, по отношению к  числу опрошенных  получателей услуг- инвалидов, ответивших на соответствующий вопрос анкеты",0,100,"Число получателей услуг, удовлетворенных доброжелательностью, вежливостью работников организации социальной сферы, обеспечивающих первичный контакт и информирование получателя услуги,  по отношению к числу опрошенныхполучателей услуг, ответивших на соответствующий вопрос  анкеты",95,100,"Число  получателей услуг, удовлетворенных доброжелательностью, вежливостью работников организации социальной сферы, обеспечивающих непосредственное оказание услуги, по отношению к числу опрошенных получателей услуг, ответивших на соответствующий вопрос анкеты",92,100,"Число получателей услуг, удовлетворенных доброжелательностью, вежливостью работников организации социальной сферы при использовании дистанционных форм взаимодействия, по отношению к числу опрошенных получателей услуг, ответивших на соответствующий вопрос анкеты",94,100,"Число получателей услуг, которые готовы рекомендовать организацию родственникам и знакомым (могли бы ее рекомендовать, если бы была возможность выбора организации, по отношению к числу опрошенных получателей услуг, ответивших на соответствующий вопрос анкеты",93,100,"Число получателей услуг, удовлетворенных организационными условиями предоставления услуг, по отношению к числу опрошенных получателей услуг  ответивших на соответствующий вопрос анкеты",95,100,"Число  получателей услуг, удовлетворенных в целом условиями оказания услуг в организации социальной сферы, по отношению к\nчислу опрошенных  получателей услуг, ответивших на соответствующий вопрос анкеты",94,100]
[15,"МУНИЦИПАЛЬНОЕ БЮДЖЕТНОЕ ДОШКОЛЬНОЕ ОБРАЗОВАТЕЛЬНОЕ УЧРЕЖДЕНИЕ \"НИЖНЕУСЛОНСКИЙ ДЕТСКИЙ САД\" ВЕРХНЕУСЛОНСКОГО МУНИЦИПАЛЬНОГО РАЙОНА РЕСПУБЛИКИ ТАТАРСТАН, 1615004139","21","21","100.0","объем информации (количество материалов/единиц информации), размещенной  на информационных стендах в помещении организации по отношению к количеству  материалов, размещение которых установлено нормативными правовыми актами",95,100,"Объем информации (количество материалов/единиц информации), размещенной  на официальном сайте организации по отношению к количеству  материалов, размещение которых установлено нормативными правовыми актами",95,100,"Количество  функционирующих дистанционных способов взаимодействия (от одного до трех способов включительно)",3,30,{"$nulls":6},"Количество комфортных условий для предоставления услуг (от одного до четырех включительно)",3,20,{"$nulls":3},"Количество условий доступности организации для инвалидов (от одного до четырех)",3,20,"Количество условий доступности, позволяющих инвалидам получать услуги наравне с другими (от одного до четырех)",3,20]
[15,"МУНИЦИПАЛЬНОЕ БЮДЖЕТНОЕ ДОШКОЛЬНОЕ ОБРАЗОВАТЕЛЬНОЕ УЧРЕЖДЕНИЕ \"НИЖНЕУСЛОНСКИЙ ДЕТСКИЙ САД\" ВЕРХНЕУСЛОНСКОГО МУНИЦИПАЛЬНОГО РАЙОНА РЕСПУБЛИКИ ТАТАРСТАН, 1615004139","21","21","100.0",{"$nulls":6},"В наличии и функционируют более трех  дистанционных способов взаимодействия","",100,{"$nulls":6},"Наличие пяти  и более комфортных условий для предоставления услуг","",100,{"$nulls":3},"Наличие пяти и более условий доступности для инвалидов","",100,"Наличие пяти и более условий  доступности","",100]
[16,"МУНИЦИПАЛЬНОЕ БЮДЖЕТНОЕ ДОШКОЛЬНОЕ ОБРАЗОВАТЕЛЬНОЕ УЧРЕЖДЕНИЕ \"ПЕЧИЩИНСКИЙ ДЕТСКИЙ САД\" ВЕРХНЕУСЛОНСКОГО МУНИЦИПАЛЬНОГО РАЙОНА РЕСПУБЛИКИ ТАТАРСТАН, 1615004058","22","21","95.4","отсутствует информация о деятельности организации социальной сферы","",0,"Отсутствует информация о деятельности организации социальной сферы на ее официальном сайте","",0,"Отсутствуют или не функционируют дистанционные способы взаимодействия","",0,"Число получателей услуг, удовлетворенных качеством, полнотой и доступностью информации о деятельности организации социальной сферы, размещенной на информационных стендах в помещении организации социальной сферы по отношению к числу опрошенных  получателей услуг, ответивших на соответствующий вопрос анкеты",93,100,"число получателей услуг, удовлетворенных качеством, полнотой и доступностью информации о деятельности организации социальной сферы, размещенной на официальном сайте организации социальной сферы по отношению к  числу опрошенных  получателей услуг, ответивших на соответствующий вопрос анкеты",94,100,"Отсутствуют комфортные условия","",0,"Число получателей услуг, удовлетворенных комфортностью предоставления услуг организацией социальной сферы, по отношению к  числу опрошенных  получателей услуг, ответивших на данный вопрос",92,100,"Отсутствуют условия доступности для инвалидов","",0,"Отсутствуют условия доступности, позволяющие инвалидам получать услуги наравне с другими","",0,"Число получателей услуг-инвалидов, удовлетворенных доступностью услуг для инвалидов, по отношению к  числу опрошенных  получателей услуг- инвалидов, ответивших на соответствующий вопрос анкеты",0,100,"Число получателей услуг, удовлетворенных доброжелательностью, вежливостью работников организации социальной сферы, обеспечивающих первичный контакт и информирование получателя услуги,  по отношению к числу опрошенныхполучателей услуг, ответивших на соответствующий вопрос  анкеты",84,100,"Число  получателей услуг, удовлетворенных доброжелательностью, вежливостью работников организации социальной сферы, обеспечивающих непосредственное оказание услуги, по отношению к числу опрошенных получателей услуг, ответивших на соответствующий вопрос анкеты",85,100,"Число получателей услуг, удовлетворенных доброжелательностью, вежливостью работников организации социальной сферы при использовании дистанционных форм взаимодействия, по отношению к числу опрошенных получателей услуг, ответивших на соответствующий вопрос анкеты",84,100,"Число получателей услуг, которые готовы рекомендовать организацию родственникам и знакомым (могли бы ее рекомендовать, если бы была возможность выбора организации, по отношению к числу опрошенных получателей услуг, ответивших на соответствующий вопрос анкеты",81,100,"Число получателей услуг, удовлетворенных организационными условиями предоставления услуг, по отношению к числу опрошенных получателей услуг  ответивших на соответствующий вопрос анкеты",84,100,"Число  получателей услуг, удовлетворенных в целом условиями оказания услуг в организации социальной сферы, по отношению к\nчислу опрошенных  получателей услуг, ответивших на соответствующий вопрос анкеты",85,100]
[16,"МУНИЦИПАЛЬНОЕ БЮДЖЕТНОЕ ДОШКОЛЬНОЕ ОБРАЗОВАТЕЛЬНОЕ УЧРЕЖДЕНИЕ \"ПЕЧИЩИНСКИЙ ДЕТСКИЙ САД\" ВЕРХНЕУСЛОНСКОГО МУНИЦИПАЛЬНОГО РАЙОНА РЕСПУБЛИКИ ТАТАРСТАН, 1615004058","22","21","95.4","объем информации (количество материалов/единиц информации), размещенной  на информационных стендах в помещении организации по отношению к количеству  материалов, размещение которых установлено нормативными правовыми актами",86,100,"Объем информации (количество материалов/единиц информации), размещенной  на официальном сайте организации по отношению к количеству  материалов, размещение которых установлено нормативными правовыми актами",84,100,"Количество  функционирующих дистанционных способов взаимодействия (от одного до трех способов включительно)",3,30,{"$nulls":6},"Количество комфортных условий для предоставления услуг (от одного до четырех включительно)",3,20,{"$nulls":3},"Количество условий доступности организации для инвалидов (от одного до четырех)",3,20,"Количество условий доступности, позволяющих инвалидам получать услуги наравне с другими (от одного до четырех)",3,20]
[16,"МУНИЦИПАЛЬНОЕ БЮДЖЕТНОЕ ДОШКОЛЬНОЕ ОБРАЗОВАТЕЛЬНОЕ УЧРЕЖДЕНИЕ \"ПЕЧИЩИНСКИЙ ДЕТСКИЙ САД\" ВЕРХНЕУСЛОНСКОГО МУНИЦИПАЛЬНОГО РАЙОНА РЕСПУБЛИКИ ТАТАРСТАН, 1615004058","22","21","95.4",{"$nulls":6},"В наличии и функционируют более трех  дистанционных способов взаимодействия","",100,{"$nulls":6},"Наличие пяти  и более комфортных условий для предоставления услуг","",100,{"$nulls":3},"Наличие пяти и более условий доступности для инвалидов","",100,"Наличие пяти и более условий  доступности","",100]
[17,"МУНИЦИПАЛЬНОЕ БЮДЖЕТНОЕ ДОШКОЛЬНОЕ ОБРАЗОВАТЕЛЬНОЕ УЧРЕЖДЕНИЕ \"ТАТАРСКО-БУРНАШЕВСКИЙ ДЕТСКИЙ САД\" ВЕРХНЕУСЛОНСКОГО МУНИЦИПАЛЬНОГО РАЙОНА РЕСПУБЛИКИ ТАТАРСТАН, 1615004114","21","21","100.0","отсутствует информация о деятельности организации социальной сферы","",0,"Отсутствует информация о деятельности организации социальной сферы на ее официальном сайте","",0,"Отсутствуют или не функционируют дистанционные способы взаимодействия","",0,"Число получателей услуг, удовлетворенных качеством, полнотой и доступностью информации о деятельности организации социальной сферы, размещенной на информационных стендах в помещении организации социальной сферы по отношению к числу опрошенных  получателей услуг, ответивших на соответствующий вопрос анкеты",94,100,"число получателей услуг, удовлетворенных качеством, полнотой и доступностью информации о деятельности организации социальной сферы, размещенной на официальном сайте организации социальной сферы по отношению к  числу опрошенных  получателей услуг, ответивших на соответствующий вопрос анкеты",92,100,"Отсутствуют комфортные условия","",0,"Число получателей услуг, удовлетворенных комфортностью предоставления услуг организацией социальной сферы, по отношению к  числу опрошенных  получателей услуг, ответивших на данный вопрос",100,100,"Отсутствуют условия доступности для инвалидов","",0,"Отсутствуют условия доступности, позволяющие инвалидам получать услуги наравне с другими","",0,"Число получателей услуг-инвалидов, удовлетворенных доступностью услуг для инвалидов, по отношению к  числу опрошенных  получателей услуг- инвалидов, ответивших на соответствующий вопрос анкеты",0,100,"Число получателей услуг, удовлетворенных доброжелательностью, вежливостью работников организации социальной сферы, обеспечивающих первичный контакт и информирование получателя услуги,  по отношению к числу опрошенныхполучателей услуг, ответивших на соответствующий вопрос  анкеты",100,100,"Число  получателей услуг, удовлетворенных доброжелательностью, вежливостью работников организации социальной сферы, обеспечивающих непосредственное оказание услуги, по отношению к числу опрошенных получателей услуг, ответивших на соответствующий вопрос анкеты",100,100,"Число получателей услуг, удовлетворенных доброжелательностью, вежливостью работников организации социальной сферы при использовании дистанционных форм взаимодействия, по отношению к числу опрошенных получателей услуг, ответивших на соответствующий вопрос анкеты",100,100,"Число получателей услуг, которые готовы рекомендовать организацию родственникам и знакомым (могли бы ее рекомендовать, если бы была возможность выбора организации, по отношению к числу опрошенных получателей услуг, ответивших на соответствующий вопрос анкеты",100,100,"Число получателей услуг, удовлетворенных организационными условиями предоставления услуг, по отношению к числу опрошенных получателей услуг  ответивших на соответствующий вопрос анкеты",100,100,"Число  получателей услуг, удовлетворенных в целом условиями оказания услуг в организации социальной сферы, по отношению к\nчислу опрошенных  получателей услуг, ответивших на соответствующий вопрос анкеты",100,100]
[17,"МУНИЦИПАЛЬНОЕ БЮДЖЕТНОЕ ДОШКОЛЬНОЕ ОБРАЗОВАТЕЛЬНОЕ УЧРЕЖДЕНИЕ \"ТАТАРСКО-БУРНАШЕВСКИЙ ДЕТСКИЙ САД\" ВЕРХНЕУСЛОНСКОГО МУНИЦИПАЛЬНОГО РАЙОНА РЕСПУБЛИКИ ТАТАРСТАН, 1615004114","21","21","100.0","объем информации (количество материалов/единиц информации), размещенной  на информационных стендах в помещении организации по отношению к количеству  материалов, размещение которых установлено нормативными правовыми актами",94,100,"Объем информации (количество материалов/единиц информации), размещенной  на официальном сайте организации по отношению к количеству  материалов, размещение которых установлено нормативными правовыми актами",90,100,"Количество  функционирующих дистанционных способов взаимодействия (от одного до трех способов включительно)",3,30,{"$nulls":6},"Количество комфортных условий для предоставления услуг (от одного до четырех включительно)",3,20,{"$nulls":3},"Количество условий доступности организации для инвалидов (от одного до четырех)",3,20,"Количество условий доступности, позволяющих инвалидам получать услуги наравне с другими (от одного до четырех)",3,20]
[17,"МУНИЦИПАЛЬНОЕ БЮДЖЕТНОЕ ДОШКОЛЬНОЕ ОБРАЗОВАТЕЛЬНОЕ УЧРЕЖДЕНИЕ \"ТАТАРСКО-БУРНАШЕВСКИЙ ДЕТСКИЙ САД\" ВЕРХНЕУСЛОНСКОГО МУНИЦИПАЛЬНОГО РАЙОНА РЕСПУБЛИКИ ТАТАРСТАН, 1615004114","21","21","100.0",{"$nulls":6},"В наличии и функционируют более трех  дистанционных способов взаимодействия","",100,{"$nulls":6},"Наличие пяти  и более комфортных условий для предоставления услуг","",100,{"$nulls":3},"Наличие пяти и более условий доступности для инвалидов","",100,"Наличие пяти и более условий  доступности","",100]
[18,"МУНИЦИПАЛЬНОЕ БЮДЖЕТНОЕ ДОШКОЛЬНОЕ ОБРАЗОВАТЕЛЬНОЕ УЧРЕЖДЕНИЕ \"ШЕЛАНГОВСКИЙ ДЕТСКИЙ САД\" ВЕРХНЕУСЛОНСКОГО МУНИЦИПАЛЬНОГО РАЙОНА РЕСПУБЛИКИ ТАТАРСТАН, 1615003826","26","24","92.3","отсутствует информация о деятельности организации социальной сферы","",0,"Отсутствует информация о деятельности организации социальной сферы на ее официальном сайте","",0,"Отсутствуют или не функционируют дистанционные способы взаимодействия","",0,"Число получателей услуг, удовлетворенных качеством, полнотой и доступностью информации о деятельности организации социальной сферы, размещенной на информационных стендах в помещении организации социальной сферы по отношению к числу опрошенных  получателей услуг, ответивших на соответствующий вопрос анкеты",89,100,"число получателей услуг, удовлетворенных качеством, полнотой и доступностью информации о деятельности организации социальной сферы, размещенной на официальном сайте организации социальной сферы по отношению к  числу опрошенных  получателей услуг, ответивших на соответствующий вопрос анкеты",87,100,"Отсутствуют комфортные условия","",0,"Число получателей услуг, удовлетворенных комфортностью предоставления услуг организацией социальной сферы, по отношению к  числу опрошенных  получателей услуг, ответивших на данный вопрос",85,100,"Отсутствуют условия доступности для инвалидов","",0,"Отсутствуют условия доступности, позволяющие инвалидам получать услуги наравне с другими","",0,"Число получателей услуг-инвалидов, удовлетворенных доступностью услуг для инвалидов, по отношению к  числу опрошенных  получателей услуг- инвалидов, ответивших на соответствующий вопрос анкеты",0,100,"Число получателей услуг, удовлетворенных доброжелательностью, вежливостью работников организации социальной сферы, обеспечивающих первичный контакт и информирование получателя услуги,  по отношению к числу опрошенныхполучателей услуг, ответивших на соответствующий вопрос  анкеты",95,100,"Число  получателей услуг, удовлетворенных доброжелательностью, вежливостью работников организации социальной сферы, обеспечивающих непосредственное оказание услуги, по отношению к числу опрошенных получателей услуг, ответивших на соответствующий вопрос анкеты",95,100,"Число получателей услуг, удовлетворенных доброжелательностью, вежливостью работников организации социальной сферы при использовании дистанционных форм взаимодействия, по отношению к числу опрошенных получателей услуг, ответивших на соответствующий вопрос анкеты",94,100,"Число получателей услуг, которые готовы рекомендовать организацию родственникам и знакомым (могли бы ее рекомендовать, если бы была возможность выбора организации, по отношению к числу опрошенных получателей услуг, ответивших на соответствующий вопрос анкеты",91,100,"Число получателей услуг, удовлетворенных организационными условиями предоставления услуг, по отношению к числу опрошенных получателей услуг  ответивших на соответствующий вопрос анкеты",89,100,"Число  получателей услуг, удовлетворенных в целом условиями оказания услуг в организации социальной сферы, по отношению к\nчислу опрошенных  получателей услуг, ответивших на соответствующий вопрос анкеты",87,100]
[18,"МУНИЦИПАЛЬНОЕ БЮДЖЕТНОЕ ДОШКОЛЬНОЕ ОБРАЗОВАТЕЛЬНОЕ УЧРЕЖДЕНИЕ \"ШЕЛАНГОВСКИЙ ДЕТСКИЙ САД\" ВЕРХНЕУСЛОНСКОГО МУНИЦИПАЛЬНОГО РАЙОНА РЕСПУБЛИКИ ТАТАРСТАН, 1615003826","26","24","92.3","объем информации (количество материалов/единиц информации), размещенной  на информационных стендах в помещении организации по отношению к количеству  материалов, размещение которых установлено нормативными правовыми актами",89,100,"Объем информации (количество материалов/единиц информации), размещенной  на официальном сайте организации по отношению к количеству  материалов, размещение которых установлено нормативными правовыми актами",92,100,"Количество  функционирующих дистанционных способов взаимодействия (от одного до трех способов включительно)",3,30,{"$nulls":6},"Количество комфортных условий для предоставления услуг (от одного до четырех включительно)",3,20,{"$nulls":3},"Количество условий доступности организации для инвалидов (от одного до четырех)",3,20,"Количество условий доступности, позволяющих инвалидам получать услуги наравне с другими (от одного до четырех)",3,20]
[18,"МУНИЦИПАЛЬНОЕ БЮДЖЕТНОЕ ДОШКОЛЬНОЕ ОБРАЗОВАТЕЛЬНОЕ УЧРЕЖДЕНИЕ \"ШЕЛАНГОВСКИЙ ДЕТСКИЙ САД\" ВЕРХНЕУСЛОНСКОГО МУНИЦИПАЛЬНОГО РАЙОНА РЕСПУБЛИКИ ТАТАРСТАН, 1615003826","26","24","92.3",{"$nulls":6},"В наличии и функционируют более трех  дистанционных способов взаимодействия","",100,{"$nulls":6},"Наличие пяти  и более комфортных условий для предоставления услуг","",100,{"$nulls":3},"Наличие пяти и более условий доступности для инвалидов","",100,"Наличие пяти и более условий  доступности","",100]
[19,"МУНИЦИПАЛЬНОЕ БЮДЖЕТНОЕ ДОШКОЛЬНОЕ ОБРАЗОВАТЕЛЬНОЕ УЧРЕЖДЕНИЕ \"ЯМБУЛАТОВСКИЙ ДЕТСКИЙ САД\" ВЕРХНЕУСЛОНСКОГО МУНИЦИПАЛЬНОГО РАЙОНА РЕСПУБЛИКИ ТАТАРСТАН, 1656067716","9","9","100.0","отсутствует информация о деятельности организации социальной сферы","",0,"Отсутствует информация о деятельности организации социальной сферы на ее официальном сайте","",0,"Отсутствуют или не функционируют дистанционные способы взаимодействия","",0,"Число получателей услуг, удовлетворенных качеством, полнотой и доступностью информации о деятельности организации социальной сферы, размещенной на информационных стендах в помещении организации социальной сферы по отношению к числу опрошенных  получателей услуг, ответивших на соответствующий вопрос анкеты",100,100,"число получателей услуг, удовлетворенных качеством, полнотой и доступностью информации о деятельности организации социальной сферы, размещенной на официальном сайте организации социальной сферы по отношению к  числу опрошенных  получателей услуг, ответивших на соответствующий вопрос анкеты",100,100,"Отсутствуют комфортные условия","",0,"Число получателей услуг, удовлетворенных комфортностью предоставления услуг организацией социальной сферы, по отношению к  числу опрошенных  получателей услуг, ответивших на данный вопрос",100,100,"Отсутствуют условия доступности для инвалидов","",0,"Отсутствуют условия доступности, позволяющие инвалидам получать услуги наравне с другими","",0,"Число получателей услуг-инвалидов, удовлетворенных доступностью услуг для инвалидов, по отношению к  числу опрошенных  получателей услуг- инвалидов, ответивших на соответствующий вопрос анкеты",0,100,"Число получателей услуг, удовлетворенных доброжелательностью, вежливостью работников организации социальной сферы, обеспечивающих первичный контакт и информирование получателя услуги,  по отношению к числу опрошенныхполучателей услуг, ответивших на соответствующий вопрос  анкеты",100,100,"Число  получателей услуг, удовлетворенных доброжелательностью, вежливостью работников организации социальной сферы, обеспечивающих непосредственное оказание услуги, по отношению к числу опрошенных получателей услуг, ответивших на соответствующий вопрос анкеты",100,100,"Число получателей услуг, удовлетворенных доброжелательностью, вежливостью работников организации социальной сферы при использовании дистанционных форм взаимодействия, по отношению к числу опрошенных получателей услуг, ответивших на соответствующий вопрос анкеты",100,100,"Число получателей услуг, которые готовы рекомендовать организацию родственникам и знакомым (могли бы ее рекомендовать, если бы была возможность выбора организации, по отношению к числу опрошенных получателей услуг, ответивших на соответствующий вопрос анкеты",100,100,"Число получателей услуг, удовлетворенных организационными условиями предоставления услуг, по отношению к числу опрошенных получателей услуг  ответивших на соответствующий вопрос анкеты",100,100,"Число  получателей услуг, удовлетворенных в целом условиями оказания услуг в организации социальной сферы, по отношению к\nчислу опрошенных  получателей услуг, ответивших на соответствующий вопрос анкеты",95,100]
[19,"МУНИЦИПАЛЬНОЕ БЮДЖЕТНОЕ ДОШКОЛЬНОЕ ОБРАЗОВАТЕЛЬНОЕ УЧРЕЖДЕНИЕ \"ЯМБУЛАТОВСКИЙ ДЕТСКИЙ САД\" ВЕРХНЕУСЛОНСКОГО МУНИЦИПАЛЬНОГО РАЙОНА РЕСПУБЛИКИ ТАТАРСТАН, 1656067716","9","9","100.0","объем информации (количество материалов/единиц информации), размещенной  на информационных стендах в помещении организации по отношению к количеству  материалов, размещение которых установлено нормативными правовыми актами",84,100,"Объем информации (количество материалов/единиц информации), размещенной  на официальном сайте организации по отношению к количеству  материалов, размещение которых установлено нормативными правовыми актами",89,100,"Количество  функционирующих дистанционных способов взаимодействия (от одного до трех способов включительно)",3,30,{"$nulls":6},"Количество комфортных условий для предоставления услуг (от одного до четырех включительно)",3,20,{"$nulls":3},"Количество условий доступности организации для инвалидов (от одного до четырех)",3,20,"Количество условий доступности, позволяющих инвалидам получать услуги наравне с другими (от одного до четырех)",3,20]
[19,"МУНИЦИПАЛЬНОЕ БЮДЖЕТНОЕ ДОШКОЛЬНОЕ ОБРАЗОВАТЕЛЬНОЕ УЧРЕЖДЕНИЕ \"ЯМБУЛАТОВСКИЙ ДЕТСКИЙ САД\" ВЕРХНЕУСЛОНСКОГО МУНИЦИПАЛЬНОГО РАЙОНА РЕСПУБЛИКИ ТАТАРСТАН, 1656067716","9","9","100.0",{"$nulls":6},"В наличии и функционируют более трех  дистанционных способов взаимодействия","",100,{"$nulls":6},"Наличие пяти  и более комфортных условий для предоставления услуг","",100,{"$nulls":3},"Наличие пяти и более условий доступности для инвалидов","",100,"Наличие пяти и более условий  доступности","",100]
[20,"МУНИЦИПАЛЬНОЕ БЮДЖЕТНОЕ ДОШКОЛЬНОЕ ОБРАЗОВАТЕЛЬНОЕ УЧРЕЖДЕНИЕ \"ОКТЯБРЬСКИЙ ДЕТСКИЙ САД\" ВЕРХНЕУСЛОНСКОГО МУНИЦИПАЛЬНОГО РАЙОНА РЕСПУБЛИКИ ТАТАРСТАН, 1615004121","14","14","100.0","отсутствует информация о деятельности организации социальной сферы","",0,"Отсутствует информация о деятельности организации социальной сферы на ее официальном сайте","",0,"Отсутствуют или не функционируют дистанционные способы взаимодействия","",0,"Число получателей услуг, удовлетворенных качеством, полнотой и доступностью информации о деятельности организации социальной сферы, размещенной на информационных стендах в помещении организации социальной сферы по отношению к числу опрошенных  получателей услуг, ответивших на соответствующий вопрос анкеты",87,100,"число получателей услуг, удовлетворенных качеством, полнотой и доступностью информации о деятельности организации социальной сферы, размещенной на официальном сайте организации социальной сферы по отношению к  числу опрошенных  получателей услуг, ответивших на соответствующий вопрос анкеты",85,100,"Отсутствуют комфортные условия","",0,"Число получателей услуг, удовлетворенных комфортностью предоставления услуг организацией социальной сферы, по отношению к  числу опрошенных  получателей услуг, ответивших на данный вопрос",85,100,"Отсутствуют условия доступности для инвалидов","",0,"Отсутствуют условия доступности, позволяющие инвалидам получать услуги наравне с другими","",0,"Число получателей услуг-инвалидов, удовлетворенных доступностью услуг для инвалидов, по отношению к  числу опрошенных  получателей услуг- инвалидов, ответивших на соответствующий вопрос анкеты",0,100,"Число получателей услуг, удовлетворенных доброжелательностью, вежливостью работников организации социальной сферы, обеспечивающих первичный контакт и информирование получателя услуги,  по отношению к числу опрошенныхполучателей услуг, ответивших на соответствующий вопрос  анкеты",82,100,"Число  получателей услуг, удовлетворенных доброжелательностью, вежливостью работников организации социальной сферы, обеспечивающих непосредственное оказание услуги, по отношению к числу опрошенных получателей услуг, ответивших на соответствующий вопрос анкеты",84,100,"Число получателей услуг, удовлетворенных доброжелательностью, вежливостью работников организации социальной сферы при использовании дистанционных форм взаимодействия, по отношению к числу опрошенных получателей услуг, ответивших на соответствующий вопрос анкеты",84,100,"Число получателей услуг, которые готовы рекомендовать организацию родственникам и знакомым (могли бы ее рекомендовать, если бы была возможность выбора организации, по отношению к числу опрошенных получателей услуг, ответивших на соответствующий вопрос анкеты",81,100,"Число получателей услуг, удовлетворенных организационными условиями предоставления услуг, по отношению к числу опрошенных получателей услуг  ответивших на соответствующий вопрос анкеты",82,100,"Число  получателей услуг, удовлетворенных в целом условиями оказания услуг в организации социальной сферы, по отношению к\nчислу опрошенных  получателей услуг, ответивших на соответствующий вопрос анкеты",81,100]
[20,"МУНИЦИПАЛЬНОЕ БЮДЖЕТНОЕ ДОШКОЛЬНОЕ ОБРАЗОВАТЕЛЬНОЕ УЧРЕЖДЕНИЕ \"ОКТЯБРЬСКИЙ ДЕТСКИЙ САД\" ВЕРХНЕУСЛОНСКОГО МУНИЦИПАЛЬНОГО РАЙОНА РЕСПУБЛИКИ ТАТАРСТАН, 1615004121","14","14","100.0","объем информации (количество материалов/единиц информации), размещенной  на информационных стендах в помещении организации по отношению к количеству  материалов, размещение которых установлено нормативными правовыми актами",88,100,"Объем информации (количество материалов/единиц информации), размещенной  на официальном сайте организации по отношению к количеству  материалов, размещение которых установлено нормативными правовыми актами",89,100,"Количество  функционирующих дистанционных способов взаимодействия (от одного до трех способов включительно)",3,30,{"$nulls":6},"Количество комфортных условий для предоставления услуг (от одного до четырех включительно)",3,20,{"$nulls":3},"Количество условий доступности организации для инвалидов (от одного до четырех)",3,20,"Количество условий доступности, позволяющих инвалидам получать услуги наравне с другими (от одного до четырех)",3,20]
[20,"МУНИЦИПАЛЬНОЕ БЮДЖЕТНОЕ ДОШКОЛЬНОЕ ОБРАЗОВАТЕЛЬНОЕ УЧРЕЖДЕНИЕ \"ОКТЯБРЬСКИЙ ДЕТСКИЙ САД\" ВЕРХНЕУСЛОНСКОГО МУНИЦИПАЛЬНОГО РАЙОНА РЕСПУБЛИКИ ТАТАРСТАН, 1615004121","14","14","100.0",{"$nulls":6},"В наличии и функционируют более трех  дистанционных способов взаимодействия","",100,{"$nulls":6},"Наличие пяти  и более комфортных условий для предоставления услуг","",100,{"$nulls":3},"Наличие пяти и более условий доступности для инвалидов","",100,"Наличие пяти и более условий  доступности","",100]

{"sheet":"Результаты.Недостатки.Предложен","index":3,"n_rows":8,"n_cols":2,"rows_kept":8,"merged":[[0,0,0,1],[3,0,3,1],[6,0,6,1]]}
["Основные результаты. Сводные результаты"]
["Описание основных результатов НО","С целью получения более полного анализа степени удовлетворенности родителями качеством деятельности образовательного учреждения в МБОУ «Печищинская ООШ», МБОУ «Нижнеуслонская ООШ», МБОУ «Введенско-Слободская ООШ» была проведена независимая оценка качества. Оценивались открытость и доступность информации об ОУ в т. ч. качество информирования через Интернет-сайт; комфортность на территории и внутри зданий ОУ; доброжелательность, вежливость и компетентность сотрудников ОУ; удовлетворенность качеством образовательной деятельности ОУ. \nАнкетирование родителей было произведено в соответствии с методическими рекомендациями по расчету независимой оценки качества деятельности организаций, осуществляющих образовательную деятельность (утвержденным Министерством образования и науки РФ 15 сентября 2016 г. № АП-87/02вн). В соответствии с приказом №1547 НОКО анализ результатов анкетирования производился по 10 бальной шкале от 0 до 10. Был рассчитан средний балл по каждой области качества. \nВсего было опрошено 73 родителя, что составило 100 % от общего количества списочного состава обучающихся.\n\nВ целом МБДОУ соответствуют  критериям комфортности условий, доступности получения в образовательной организации услуг. В числе положительных результатов в ОО созданы санитарные условия, условия для ухода и присмотра за воспитанниками. В наличии  детские игровые площадки на территории ОО, созданы условия для питания детей,  выполняются требования  противопожарной безопасности."]
[]
["Основные недостатки"]
["Описание основных недостатков, выявленных в ходе проведения НО","ОУ:\n1.\tПропаганда сайта ОУ среди родительской общественности.\n2.\tОбучение родителей пользованию интернетом.\n3.\tОзнакомление родителей со структурой сайта.\n4.\tУлучшение материально-технического и информационного обеспечения, условий для охраны здоровья и индивидуальной работы.\n5.\tПровести работу по привлечению обучающихся в школьные кружки и секции; для участия в школьные массовые мероприятия.\n\nМБДОУ:\n-  Недостаточное оснащение информационно - техническим оборудованием   для применения современных технологий\n- Наличие предписаний надзорных органов"]
[]
["Предложения об улучшении качества. Сводные предложения"]
["Предложения по улучшению качества деятельности организации","-"]